Workbook

Sheet APS60M 入力発表
A1: 順位 | B1: 射群 | C1: 射座 | D1: 名 前 | E1: 学校名 | F1: S１ | G1: S２ | H1: S３ | I1: S４ | J1: S５ | K1: S６ | L1: 合 計 | M1: X | N1: 備考
A2: 1 | B2: ア | C2: 2 | D2: 菅原 康之 | E2: 京都大学 | F2: 90 | G2: 89 | H2: 87 | I2: 89 | J2: 92 | K2: 88 | L2: 535 | M2: 10
A3: 2 | B3: ア | C3: 1 | D3: 伊場 勇気 | E3: 立命館大学 | F3: 95 | G3: 83 | H3: 82 | I3: 79 | J3: 82 | K3: 83 | L3: 504 | M3: 3
L4: =IF($D4="","",SUM(F4,G4,H4,I4,J4,K4)) ->  | M4: =IF($D4="","",SUM(#REF!,#REF!,#REF!,#REF!,#REF!,#REF!)) ->  | P4: =IF(D4="","",F4*1+G4*10^2+H4*10^4+I4*10^6+J4*10^8+K4*10^10+M4*10^12+L4*10^14) -> 
M5: =IF($D5="","",SUM(#REF!,#REF!,#REF!,#REF!,#REF!,#REF!)) -> 
M6: =IF($D6="","",SUM(#REF!,#REF!,#REF!,#REF!,#REF!,#REF!)) -> 
M7: =IF($D7="","",SUM(#REF!,#REF!,#REF!,#REF!,#REF!,#REF!)) -> 
M8: =IF($D8="","",SUM(#REF!,#REF!,#REF!,#REF!,#REF!,#REF!)) -> 
M9: =IF($D9="","",SUM(#REF!,#REF!,#REF!,#REF!,#REF!,#REF!)) -> 
M10: =IF($D10="","",SUM(#REF!,#REF!,#REF!,#REF!,#REF!,#REF!)) -> 
M11: =IF($D11="","",SUM(#REF!,#REF!,#REF!,#REF!,#REF!,#REF!)) -> 
M12: =IF($D12="","",SUM(#REF!,#REF!,#REF!,#REF!,#REF!,#REF!)) -> 
M13: =IF($D13="","",SUM(#REF!,#REF!,#REF!,#REF!,#REF!,#REF!)) -> 
M14: =IF($D14="","",SUM(#REF!,#REF!,#REF!,#REF!,#REF!,#REF!)) -> 
M15: =IF($D15="","",SUM(#REF!,#REF!,#REF!,#REF!,#REF!,#REF!)) -> 
M16: =IF($D16="","",SUM(#REF!,#REF!,#REF!,#REF!,#REF!,#REF!)) -> 
M17: =IF($D17="","",SUM(#REF!,#REF!,#REF!,#REF!,#REF!,#REF!)) -> 
M18: =IF($D18="","",SUM(#REF!,#REF!,#REF!,#REF!,#REF!,#REF!)) -> 
M19: =IF($D19="","",SUM(#REF!,#REF!,#REF!,#REF!,#REF!,#REF!)) -> 
M20: =IF($D20="","",SUM(#REF!,#REF!,#REF!,#REF!,#REF!,#REF!)) -> 
M21: =IF($D21="","",SUM(#REF!,#REF!,#REF!,#REF!,#REF!,#REF!)) -> 
M22: =IF($D22="","",SUM(#REF!,#REF!,#REF!,#REF!,#REF!,#REF!)) -> 
M23: =IF($D23="","",SUM(#REF!,#REF!,#REF!,#REF!,#REF!,#REF!)) -> 
M24: =IF($D24="","",SUM(#REF!,#REF!,#REF!,#REF!,#REF!,#REF!)) -> 
M25: =IF($D25="","",SUM(#REF!,#REF!,#REF!,#REF!,#REF!,#REF!)) -> 
M26: =IF($D26="","",SUM(#REF!,#REF!,#REF!,#REF!,#REF!,#REF!)) -> 
M27: =IF($D27="","",SUM(#REF!,#REF!,#REF!,#REF!,#REF!,#REF!)) -> 
M28: =IF($D28="","",SUM(#REF!,#REF!,#REF!,#REF!,#REF!,#REF!)) -> 
M29: =IF($D29="","",SUM(#REF!,#REF!,#REF!,#REF!,#REF!,#REF!)) -> 
M30: =IF($D30="","",SUM(#REF!,#REF!,#REF!,#REF!,#REF!,#REF!)) -> 
M31: =IF($D31="","",SUM(#REF!,#REF!,#REF!,#REF!,#REF!,#REF!)) -> 
M32: =IF($D32="","",SUM(#REF!,#REF!,#REF!,#REF!,#REF!,#REF!)) -> 
M33: =IF($D33="","",SUM(#REF!,#REF!,#REF!,#REF!,#REF!,#REF!)) -> 
M34: =IF($D34="","",SUM(#REF!,#REF!,#REF!,#REF!,#REF!,#REF!)) -> 
M35: =IF($D35="","",SUM(#REF!,#REF!,#REF!,#REF!,#REF!,#REF!)) -> 
M36: =IF($D36="","",SUM(#REF!,#REF!,#REF!,#REF!,#REF!,#REF!)) -> 
M37: =IF($D37="","",SUM(#REF!,#REF!,#REF!,#REF!,#REF!,#REF!)) -> 
M38: =IF($D38="","",SUM(#REF!,#REF!,#REF!,#REF!,#REF!,#REF!)) -> 
M39: =IF($D39="","",SUM(#REF!,#REF!,#REF!,#REF!,#REF!,#REF!)) -> 
M40: =IF($D40="","",SUM(#REF!,#REF!,#REF!,#REF!,#REF!,#REF!)) -> 
M41: =IF($D41="","",SUM(#REF!,#REF!,#REF!,#REF!,#REF!,#REF!)) -> 
M42: =IF($D42="","",SUM(#REF!,#REF!,#REF!,#REF!,#REF!,#REF!)) -> 
M43: =IF($D43="","",SUM(#REF!,#REF!,#REF!,#REF!,#REF!,#REF!)) -> 
M44: =IF($D44="","",SUM(#REF!,#REF!,#REF!,#REF!,#REF!,#REF!)) -> 
M45: =IF($D45="","",SUM(#REF!,#REF!,#REF!,#REF!,#REF!,#REF!)) -> 
M46: =IF($D46="","",SUM(#REF!,#REF!,#REF!,#REF!,#REF!,#REF!)) -> 
M47: =IF($D47="","",SUM(#REF!,#REF!,#REF!,#REF!,#REF!,#REF!)) -> 
M48: =IF($D48="","",SUM(#REF!,#REF!,#REF!,#REF!,#REF!,#REF!)) -> 
M49: =IF($D49="","",SUM(#REF!,#REF!,#REF!,#REF!,#REF!,#REF!)) -> 
M50: =IF($D50="","",SUM(#REF!,#REF!,#REF!,#REF!,#REF!,#REF!)) -> 
M51: =IF($D51="","",SUM(#REF!,#REF!,#REF!,#REF!,#REF!,#REF!)) -> 
M52: =IF($D52="","",SUM(#REF!,#REF!,#REF!,#REF!,#REF!,#REF!)) -> 
M53: =IF($D53="","",SUM(#REF!,#REF!,#REF!,#REF!,#REF!,#REF!)) -> 
M54: =IF($D54="","",SUM(#REF!,#REF!,#REF!,#REF!,#REF!,#REF!)) -> 
M55: =IF($D55="","",SUM(#REF!,#REF!,#REF!,#REF!,#REF!,#REF!)) -> 
M56: =IF($D56="","",SUM(#REF!,#REF!,#REF!,#REF!,#REF!,#REF!)) -> 
M57: =IF($D57="","",SUM(#REF!,#REF!,#REF!,#REF!,#REF!,#REF!)) -> 
M58: =IF($D58="","",SUM(#REF!,#REF!,#REF!,#REF!,#REF!,#REF!)) -> 
M59: =IF($D59="","",SUM(#REF!,#REF!,#REF!,#REF!,#REF!,#REF!)) -> 
M60: =IF($D60="","",SUM(#REF!,#REF!,#REF!,#REF!,#REF!,#REF!)) -> 
M61: =IF($D61="","",SUM(#REF!,#REF!,#REF!,#REF!,#REF!,#REF!)) -> 
M62: =IF($D62="","",SUM(#REF!,#REF!,#REF!,#REF!,#REF!,#REF!)) -> 
M63: =IF($D63="","",SUM(#REF!,#REF!,#REF!,#REF!,#REF!,#REF!)) -> 
M64: =IF($D64="","",SUM(#REF!,#REF!,#REF!,#REF!,#REF!,#REF!)) -> 
M65: =IF($D65="","",SUM(#REF!,#REF!,#REF!,#REF!,#REF!,#REF!)) -> 
M66: =IF($D66="","",SUM(#REF!,#REF!,#REF!,#REF!,#REF!,#REF!)) -> 
M67: =IF($D67="","",SUM(#REF!,#REF!,#REF!,#REF!,#REF!,#REF!)) -> 
L68: =IF($D68="","",SUM(F68,G68,H68,I68,J68,K68)) ->  | M68: =IF($D68="","",SUM(#REF!,#REF!,#REF!,#REF!,#REF!,#REF!)) ->  | P68: =IF(D68="","",F68*1+G68*10^2+H68*10^4+I68*10^6+J68*10^8+K68*10^10+M68*10^12+L68*10^14) -> 
M69: =IF($D69="","",SUM(#REF!,#REF!,#REF!,#REF!,#REF!,#REF!)) -> 
M70: =IF($D70="","",SUM(#REF!,#REF!,#REF!,#REF!,#REF!,#REF!)) -> 
M71: =IF($D71="","",SUM(#REF!,#REF!,#REF!,#REF!,#REF!,#REF!)) -> 
M72: =IF($D72="","",SUM(#REF!,#REF!,#REF!,#REF!,#REF!,#REF!)) -> 
M73: =IF($D73="","",SUM(#REF!,#REF!,#REF!,#REF!,#REF!,#REF!)) -> 
M74: =IF($D74="","",SUM(#REF!,#REF!,#REF!,#REF!,#REF!,#REF!)) -> 
M75: =IF($D75="","",SUM(#REF!,#REF!,#REF!,#REF!,#REF!,#REF!)) -> 
M76: =IF($D76="","",SUM(#REF!,#REF!,#REF!,#REF!,#REF!,#REF!)) -> 
M77: =IF($D77="","",SUM(#REF!,#REF!,#REF!,#REF!,#REF!,#REF!)) -> 
M78: =IF($D78="","",SUM(#REF!,#REF!,#REF!,#REF!,#REF!,#REF!)) -> 
M79: =IF($D79="","",SUM(#REF!,#REF!,#REF!,#REF!,#REF!,#REF!)) -> 
M80: =IF($D80="","",SUM(#REF!,#REF!,#REF!,#REF!,#REF!,#REF!)) -> 
M81: =IF($D81="","",SUM(#REF!,#REF!,#REF!,#REF!,#REF!,#REF!)) -> 
M82: =IF($D82="","",SUM(#REF!,#REF!,#REF!,#REF!,#REF!,#REF!)) -> 
M83: =IF($D83="","",SUM(#REF!,#REF!,#REF!,#REF!,#REF!,#REF!)) -> 
M84: =IF($D84="","",SUM(#REF!,#REF!,#REF!,#REF!,#REF!,#REF!)) -> 
M85: =IF($D85="","",SUM(#REF!,#REF!,#REF!,#REF!,#REF!,#REF!)) -> 
M86: =IF($D86="","",SUM(#REF!,#REF!,#REF!,#REF!,#REF!,#REF!)) -> 
M87: =IF($D87="","",SUM(#REF!,#REF!,#REF!,#REF!,#REF!,#REF!)) -> 
M88: =IF($D88="","",SUM(#REF!,#REF!,#REF!,#REF!,#REF!,#REF!)) -> 
M89: =IF($D89="","",SUM(#REF!,#REF!,#REF!,#REF!,#REF!,#REF!)) -> 
M90: =IF($D90="","",SUM(#REF!,#REF!,#REF!,#REF!,#REF!,#REF!)) -> 
M91: =IF($D91="","",SUM(#REF!,#REF!,#REF!,#REF!,#REF!,#REF!)) -> 
M92: =IF($D92="","",SUM(#REF!,#REF!,#REF!,#REF!,#REF!,#REF!)) -> 
M93: =IF($D93="","",SUM(#REF!,#REF!,#REF!,#REF!,#REF!,#REF!)) -> 
M94: =IF($D94="","",SUM(#REF!,#REF!,#REF!,#REF!,#REF!,#REF!)) -> 
M95: =IF($D95="","",SUM(#REF!,#REF!,#REF!,#REF!,#REF!,#REF!)) -> 
M96: =IF($D96="","",SUM(#REF!,#REF!,#REF!,#REF!,#REF!,#REF!)) -> 
M97: =IF($D97="","",SUM(#REF!,#REF!,#REF!,#REF!,#REF!,#REF!)) -> 
M98: =IF($D98="","",SUM(#REF!,#REF!,#REF!,#REF!,#REF!,#REF!)) -> 
M99: =IF($D99="","",SUM(#REF!,#REF!,#REF!,#REF!,#REF!,#REF!)) -> 
M100: =IF($D100="","",SUM(#REF!,#REF!,#REF!,#REF!,#REF!,#REF!)) -> 
M101: =IF($D101="","",SUM(#REF!,#REF!,#REF!,#REF!,#REF!,#REF!)) -> 
M102: =IF($D102="","",SUM(#REF!,#REF!,#REF!,#REF!,#REF!,#REF!)) -> 
M103: =IF($D103="","",SUM(#REF!,#REF!,#REF!,#REF!,#REF!,#REF!)) -> 
M104: =IF($D104="","",SUM(#REF!,#REF!,#REF!,#REF!,#REF!,#REF!)) -> 
M105: =IF($D105="","",SUM(#REF!,#REF!,#REF!,#REF!,#REF!,#REF!)) -> 
M106: =IF($D106="","",SUM(#REF!,#REF!,#REF!,#REF!,#REF!,#REF!)) -> 
M107: =IF($D107="","",SUM(#REF!,#REF!,#REF!,#REF!,#REF!,#REF!)) -> 
M108: =IF($D108="","",SUM(#REF!,#REF!,#REF!,#REF!,#REF!,#REF!)) -> 
M109: =IF($D109="","",SUM(#REF!,#REF!,#REF!,#REF!,#REF!,#REF!)) -> 
M110: =IF($D110="","",SUM(#REF!,#REF!,#REF!,#REF!,#REF!,#REF!)) -> 
M111: =IF($D111="","",SUM(#REF!,#REF!,#REF!,#REF!,#REF!,#REF!)) -> 
M112: =IF($D112="","",SUM(#REF!,#REF!,#REF!,#REF!,#REF!,#REF!)) -> 
M113: =IF($D113="","",SUM(#REF!,#REF!,#REF!,#REF!,#REF!,#REF!)) -> 
M114: =IF($D114="","",SUM(#REF!,#REF!,#REF!,#REF!,#REF!,#REF!)) -> 
M115: =IF($D115="","",SUM(#REF!,#REF!,#REF!,#REF!,#REF!,#REF!)) -> 
M116: =IF($D116="","",SUM(#REF!,#REF!,#REF!,#REF!,#REF!,#REF!)) -> 
M117: =IF($D117="","",SUM(#REF!,#REF!,#REF!,#REF!,#REF!,#REF!)) -> 
M118: =IF($D118="","",SUM(#REF!,#REF!,#REF!,#REF!,#REF!,#REF!)) -> 
M119: =IF($D119="","",SUM(#REF!,#REF!,#REF!,#REF!,#REF!,#REF!)) -> 
M120: =IF($D120="","",SUM(#REF!,#REF!,#REF!,#REF!,#REF!,#REF!)) -> 
M121: =IF($D121="","",SUM(#REF!,#REF!,#REF!,#REF!,#REF!,#REF!)) -> 
M122: =IF($D122="","",SUM(#REF!,#REF!,#REF!,#REF!,#REF!,#REF!)) -> 
M123: =IF($D123="","",SUM(#REF!,#REF!,#REF!,#REF!,#REF!,#REF!)) -> 
M124: =IF($D124="","",SUM(#REF!,#REF!,#REF!,#REF!,#REF!,#REF!)) -> 
M125: =IF($D125="","",SUM(#REF!,#REF!,#REF!,#REF!,#REF!,#REF!)) -> 
M126: =IF($D126="","",SUM(#REF!,#REF!,#REF!,#REF!,#REF!,#REF!)) -> 
M127: =IF($D127="","",SUM(#REF!,#REF!,#REF!,#REF!,#REF!,#REF!)) -> 
M128: =IF($D128="","",SUM(#REF!,#REF!,#REF!,#REF!,#REF!,#REF!)) -> 
M129: =IF($D129="","",SUM(#REF!,#REF!,#REF!,#REF!,#REF!,#REF!)) -> 
M130: =IF($D130="","",SUM(#REF!,#REF!,#REF!,#REF!,#REF!,#REF!)) -> 
M131: =IF($D131="","",SUM(#REF!,#REF!,#REF!,#REF!,#REF!,#REF!)) -> 
L132: =IF($D132="","",SUM(F132,G132,H132,I132,J132,K132)) ->  | M132: =IF($D132="","",SUM(#REF!,#REF!,#REF!,#REF!,#REF!,#REF!)) ->  | P132: =IF(D132="","",F132*1+G132*10^2+H132*10^4+I132*10^6+J132*10^8+K132*10^10+M132*10^12+L132*10^14) -> 
M133: =IF($D133="","",SUM(#REF!,#REF!,#REF!,#REF!,#REF!,#REF!)) -> 
M134: =IF($D134="","",SUM(#REF!,#REF!,#REF!,#REF!,#REF!,#REF!)) -> 
M135: =IF($D135="","",SUM(#REF!,#REF!,#REF!,#REF!,#REF!,#REF!)) -> 
M136: =IF($D136="","",SUM(#REF!,#REF!,#REF!,#REF!,#REF!,#REF!)) -> 
M137: =IF($D137="","",SUM(#REF!,#REF!,#REF!,#REF!,#REF!,#REF!)) -> 
M138: =IF($D138="","",SUM(#REF!,#REF!,#REF!,#REF!,#REF!,#REF!)) -> 
M139: =IF($D139="","",SUM(#REF!,#REF!,#REF!,#REF!,#REF!,#REF!)) -> 
M140: =IF($D140="","",SUM(#REF!,#REF!,#REF!,#REF!,#REF!,#REF!)) -> 
M141: =IF($D141="","",SUM(#REF!,#REF!,#REF!,#REF!,#REF!,#REF!)) -> 
M142: =IF($D142="","",SUM(#REF!,#REF!,#REF!,#REF!,#REF!,#REF!)) -> 
M143: =IF($D143="","",SUM(#REF!,#REF!,#REF!,#REF!,#REF!,#REF!)) -> 
M144: =IF($D144="","",SUM(#REF!,#REF!,#REF!,#REF!,#REF!,#REF!)) -> 
M145: =IF($D145="","",SUM(#REF!,#REF!,#REF!,#REF!,#REF!,#REF!)) -> 
M146: =IF($D146="","",SUM(#REF!,#REF!,#REF!,#REF!,#REF!,#REF!)) -> 
M147: =IF($D147="","",SUM(#REF!,#REF!,#REF!,#REF!,#REF!,#REF!)) -> 
M148: =IF($D148="","",SUM(#REF!,#REF!,#REF!,#REF!,#REF!,#REF!)) -> 
M149: =IF($D149="","",SUM(#REF!,#REF!,#REF!,#REF!,#REF!,#REF!)) -> 
M150: =IF($D150="","",SUM(#REF!,#REF!,#REF!,#REF!,#REF!,#REF!)) -> 
M151: =IF($D151="","",SUM(#REF!,#REF!,#REF!,#REF!,#REF!,#REF!)) -> 
M152: =IF($D152="","",SUM(#REF!,#REF!,#REF!,#REF!,#REF!,#REF!)) -> 
M153: =IF($D153="","",SUM(#REF!,#REF!,#REF!,#REF!,#REF!,#REF!)) -> 
M154: =IF($D154="","",SUM(#REF!,#REF!,#REF!,#REF!,#REF!,#REF!)) -> 
M155: =IF($D155="","",SUM(#REF!,#REF!,#REF!,#REF!,#REF!,#REF!)) -> 
M156: =IF($D156="","",SUM(#REF!,#REF!,#REF!,#REF!,#REF!,#REF!)) -> 
M157: =IF($D157="","",SUM(#REF!,#REF!,#REF!,#REF!,#REF!,#REF!)) -> 
M158: =IF($D158="","",SUM(#REF!,#REF!,#REF!,#REF!,#REF!,#REF!)) -> 
M159: =IF($D159="","",SUM(#REF!,#REF!,#REF!,#REF!,#REF!,#REF!)) -> 
M160: =IF($D160="","",SUM(#REF!,#REF!,#REF!,#REF!,#REF!,#REF!)) -> 
M161: =IF($D161="","",SUM(#REF!,#REF!,#REF!,#REF!,#REF!,#REF!)) -> 
M162: =IF($D162="","",SUM(#REF!,#REF!,#REF!,#REF!,#REF!,#REF!)) -> 
M163: =IF($D163="","",SUM(#REF!,#REF!,#REF!,#REF!,#REF!,#REF!)) -> 
M164: =IF($D164="","",SUM(#REF!,#REF!,#REF!,#REF!,#REF!,#REF!)) -> 
M165: =IF($D165="","",SUM(#REF!,#REF!,#REF!,#REF!,#REF!,#REF!)) -> 
M166: =IF($D166="","",SUM(#REF!,#REF!,#REF!,#REF!,#REF!,#REF!)) -> 
M167: =IF($D167="","",SUM(#REF!,#REF!,#REF!,#REF!,#REF!,#REF!)) -> 
M168: =IF($D168="","",SUM(#REF!,#REF!,#REF!,#REF!,#REF!,#REF!)) -> 
M169: =IF($D169="","",SUM(#REF!,#REF!,#REF!,#REF!,#REF!,#REF!)) -> 
M170: =IF($D170="","",SUM(#REF!,#REF!,#REF!,#REF!,#REF!,#REF!)) -> 
M171: =IF($D171="","",SUM(#REF!,#REF!,#REF!,#REF!,#REF!,#REF!)) -> 
M172: =IF($D172="","",SUM(#REF!,#REF!,#REF!,#REF!,#REF!,#REF!)) -> 
M173: =IF($D173="","",SUM(#REF!,#REF!,#REF!,#REF!,#REF!,#REF!)) -> 
M174: =IF($D174="","",SUM(#REF!,#REF!,#REF!,#REF!,#REF!,#REF!)) -> 
M175: =IF($D175="","",SUM(#REF!,#REF!,#REF!,#REF!,#REF!,#REF!)) -> 
M176: =IF($D176="","",SUM(#REF!,#REF!,#REF!,#REF!,#REF!,#REF!)) -> 
M177: =IF($D177="","",SUM(#REF!,#REF!,#REF!,#REF!,#REF!,#REF!)) -> 
M178: =IF($D178="","",SUM(#REF!,#REF!,#REF!,#REF!,#REF!,#REF!)) -> 
M179: =IF($D179="","",SUM(#REF!,#REF!,#REF!,#REF!,#REF!,#REF!)) -> 
M180: =IF($D180="","",SUM(#REF!,#REF!,#REF!,#REF!,#REF!,#REF!)) -> 
M181: =IF($D181="","",SUM(#REF!,#REF!,#REF!,#REF!,#REF!,#REF!)) -> 
M182: =IF($D182="","",SUM(#REF!,#REF!,#REF!,#REF!,#REF!,#REF!)) -> 
M183: =IF($D183="","",SUM(#REF!,#REF!,#REF!,#REF!,#REF!,#REF!)) -> 
M184: =IF($D184="","",SUM(#REF!,#REF!,#REF!,#REF!,#REF!,#REF!)) -> 
M185: =IF($D185="","",SUM(#REF!,#REF!,#REF!,#REF!,#REF!,#REF!)) -> 
M186: =IF($D186="","",SUM(#REF!,#REF!,#REF!,#REF!,#REF!,#REF!)) -> 
M187: =IF($D187="","",SUM(#REF!,#REF!,#REF!,#REF!,#REF!,#REF!)) -> 
M188: =IF($D188="","",SUM(#REF!,#REF!,#REF!,#REF!,#REF!,#REF!)) -> 
M189: =IF($D189="","",SUM(#REF!,#REF!,#REF!,#REF!,#REF!,#REF!)) -> 
M190: =IF($D190="","",SUM(#REF!,#REF!,#REF!,#REF!,#REF!,#REF!)) -> 
M191: =IF($D191="","",SUM(#REF!,#REF!,#REF!,#REF!,#REF!,#REF!)) -> 
M192: =IF($D192="","",SUM(#REF!,#REF!,#REF!,#REF!,#REF!,#REF!)) -> 
M193: =IF($D193="","",SUM(#REF!,#REF!,#REF!,#REF!,#REF!,#REF!)) -> 
M194: =IF($D194="","",SUM(#REF!,#REF!,#REF!,#REF!,#REF!,#REF!)) -> 
M195: =IF($D195="","",SUM(#REF!,#REF!,#REF!,#REF!,#REF!,#REF!)) -> 
L196: =IF($D196="","",SUM(F196,G196,H196,I196,J196,K196)) ->  | M196: =IF($D196="","",SUM(#REF!,#REF!,#REF!,#REF!,#REF!,#REF!)) ->  | P196: =IF(D196="","",F196*1+G196*10^2+H196*10^4+I196*10^6+J196*10^8+K196*10^10+M196*10^12+L196*10^14) -> 
M197: =IF($D197="","",SUM(#REF!,#REF!,#REF!,#REF!,#REF!,#REF!)) -> 
M198: =IF($D198="","",SUM(#REF!,#REF!,#REF!,#REF!,#REF!,#REF!)) -> 
M199: =IF($D199="","",SUM(#REF!,#REF!,#REF!,#REF!,#REF!,#REF!)) -> 
M200: =IF($D200="","",SUM(#REF!,#REF!,#REF!,#REF!,#REF!,#REF!)) -> 
... 98 more rows

Sheet 10mS60MW 入力発表
A1: 順位 | B1: 射群 | C1: 射座 | D1: 名 前 | E1: 学校名 | F1: S１ | G1: S２ | H1: S３ | I1: S４ | J1: S５ | K1: S６ | L1: 合 計 | M1: X | N1: 備考
A2: F | B2: 2 | C2: 11 | D2: 松巾 亜由 | E2: 立命館大学 | F2: 97 | G2: 97 | H2: 98 | I2: 97 | J2: 99 | K2: 100 | L2: 588 | M2: 43
A3: F | B3: 1 | C3: 12 | D3: 岡本 和樹 | E3: 関西大学 | F3: 98 | G3: 95 | H3: 96 | I3: 97 | J3: 96 | K3: 99 | L3: 581 | M3: 30
A4: F | B4: 1 | C4: 20 | D4: 堅田 みちる | E4: 関西大学 | F4: 96 | G4: 95 | H4: 97 | I4: 98 | J4: 96 | K4: 99 | L4: 581 | M4: 29
A5: F | B5: 2 | C5: 20 | D5: 鈴木 梨紗子 | E5: 関西大学 | F5: 97 | G5: 95 | H5: 97 | I5: 96 | J5: 95 | K5: 96 | L5: 576 | M5: 24
A6: F | B6: 1 | C6: 19 | D6: 神保 茜 | E6: 立命館大学 | F6: 92 | G6: 98 | H6: 98 | I6: 94 | J6: 98 | K6: 95 | L6: 575 | M6: 30
A7: F | B7: 2 | C7: 16 | D7: 高原 康輝 | E7: 京都産業大学 | F7: 96 | G7: 94 | H7: 98 | I7: 95 | J7: 93 | K7: 96 | L7: 572 | M7: 19
A8: F | B8: 2 | C8: 12 | D8: 津田 智永 | E8: 関西大学 | F8: 93 | G8: 97 | H8: 96 | I8: 93 | J8: 97 | K8: 94 | L8: 570 | M8: 28
A9: F | B9: 1 | C9: 27 | D9: 折原 和希 | E9: 関西大学 | F9: 94 | G9: 94 | H9: 95 | I9: 95 | J9: 95 | K9: 96 | L9: 569 | M9: 26
A10: 9 | B10: 1 | C10: 11 | D10: 奥村 哲弘 | E10: 立命館大学 | F10: 93 | G10: 96 | H10: 95 | I10: 93 | J10: 95 | K10: 94 | L10: 566 | M10: 24
A11: 10 | B11: 1 | C11: 8 | D11: 粒﨑 玲 | E11: 関西大学 | F11: 90 | G11: 90 | H11: 96 | I11: 96 | J11: 96 | K11: 96 | L11: 564 | M11: 23
A12: 11 | B12: 1 | C12: 16 | D12: 田上 諒 | E12: 京都産業大学 | F12: 89 | G12: 96 | H12: 94 | I12: 92 | J12: 92 | K12: 95 | L12: 558 | M12: 18
A13: 12 | B13: 1 | C13: 6 | D13: 長尾 侑馬 | E13: 近畿大学 | F13: 94 | G13: 88 | H13: 93 | I13: 92 | J13: 93 | K13: 93 | L13: 553 | M13: 19
A14: 13 | B14: 2 | C14: 8 | D14: 武田 佳樹 | E14: 関西大学 | F14: 92 | G14: 89 | H14: 89 | I14: 89 | J14: 94 | K14: 97 | L14: 550 | M14: 17
A15: 14 | B15: 2 | C15: 23 | D15: 藤井 瑛子 | E15: 京都大学 | F15: 94 | G15: 91 | H15: 93 | I15: 87 | J15: 92 | K15: 91 | L15: 548 | M15: 19
A16: 15 | B16: 1 | C16: 21 | D16: 家高 郁子 | E16: 同志社大学 | F16: 93 | G16: 92 | H16: 90 | I16: 90 | J16: 94 | K16: 89 | L16: 548 | M16: 15
A17: 16 | B17: 1 | C17: 14 | D17: 待場 直宏 | E17: 関西学院大学 | F17: 89 | G17: 87 | H17: 94 | I17: 92 | J17: 97 | K17: 88 | L17: 547 | M17: 8
A18: 17 | B18: 1 | C18: 22 | D18: 織野 友嘉 | E18: 関西学院大学 | F18: 89 | G18: 92 | H18: 92 | I18: 87 | J18: 92 | K18: 94 | L18: 546 | M18: 12
A19: 18 | B19: 2 | C19: 15 | D19: 千代田 真一 | E19: 京都大学 | F19: 93 | G19: 93 | H19: 85 | I19: 93 | J19: 91 | K19: 88 | L19: 543 | M19: 15
A20: 19 | B20: 2 | C20: 27 | D20: 岡本 享祐 | E20: 関西大学 | F20: 91 | G20: 89 | H20: 91 | I20: 90 | J20: 96 | K20: 86 | L20: 543 | M20: 13
A21: 20 | B21: 2 | C21: 4 | D21: 宮田 佳奈子 | E21: 京都大学 | F21: 90 | G21: 89 | H21: 88 | I21: 91 | J21: 93 | K21: 91 | L21: 542 | M21: 12
A22: 21 | B22: 1 | C22: 5 | D22: 西行 優子 | E22: 京都大学 | F22: 88 | G22: 87 | H22: 91 | I22: 90 | J22: 88 | K22: 92 | L22: 536 | M22: 11
A23: 22 | B23: 1 | C23: 23 | D23: 植田 悟史 | E23: 京都大学 | F23: 89 | G23: 85 | H23: 90 | I23: 85 | J23: 89 | K23: 96 | L23: 534 | M23: 13
A24: 23 | B24: 2 | C24: 30 | D24: 向井 琢磨 | E24: 関西大学 | F24: 89 | G24: 91 | H24: 89 | I24: 88 | J24: 87 | K24: 90 | L24: 534 | M24: 10
A25: 24 | B25: 2 | C25: 13 | D25: 川本 隼也 | E25: 同志社大学 | F25: 88 | G25: 79 | H25: 92 | I25: 86 | J25: 95 | K25: 87 | L25: 527 | M25: 6
A26: 25 | B26: 1 | C26: 17 | D26: 前田 慧 | E26: 近畿大学 | F26: 87 | G26: 83 | H26: 91 | I26: 88 | J26: 86 | K26: 90 | L26: 525 | M26: 9
A27: 26 | B27: 1 | C27: 15 | D27: 蛭田 裕之 | E27: 京都大学 | F27: 84 | G27: 85 | H27: 85 | I27: 89 | J27: 91 | K27: 87 | L27: 521 | M27: 8
A28: 27 | B28: 2 | C28: 6 | D28: 鈴木 健元 | E28: 大阪大学 | F28: 76 | G28: 88 | H28: 96 | I28: 84 | J28: 88 | K28: 87 | L28: 519 | M28: 8
A29: 28 | B29: 1 | C29: 13 | D29: 山口 滉太朗 | E29: 同志社大学 | F29: 95 | G29: 90 | H29: 94 | I29: 93 | J29: 87 | K29: 55 | L29: 514 | M29: 19
A30: 29 | B30: 2 | C30: 2 | D30: 北田 諒平 | E30: 京都大学 | F30: 76 | G30: 92 | H30: 86 | I30: 86 | J30: 83 | K30: 89 | L30: 512 | M30: 8
A31: 30 | B31: 2 | C31: 14 | D31: 木村 祐貴 | E31: 関西学院大学 | F31: 84 | G31: 80 | H31: 78 | I31: 78 | J31: 87 | K31: 90 | L31: 497 | M31: 5
A32: 31 | B32: 1 | C32: 4 | D32: 藤井 雄大 | E32: 同志社大学 | F32: 80 | G32: 80 | H32: 81 | I32: 84 | J32: 86 | K32: 84 | L32: 495 | M32: 6
A33: 32 | B33: 2 | C33: 21 | D33: 竹下 力 | E33: 同志社大学 | F33: 72 | G33: 84 | H33: 72 | I33: 84 | J33: 88 | K33: 82 | L33: 482 | M33: 4
A34: 33 | B34: 2 | C34: 28 | D34: 清水 祥 | E34: 京都大学 | F34: 85 | G34: 72 | H34: 79 | I34: 74 | J34: 83 | K34: 81 | L34: 474 | M34: 4
A35: 34 | B35: 1 | C35: 32 | D35: 濱本 穂高 | E35: 京都大学 | F35: 70 | G35: 67 | H35: 76 | I35: 79 | J35: 69 | K35: 74 | L35: 435 | M35: 2
A36: 35 | B36: 1 | C36: 24 | D36: 桝谷 大貴 | E36: 京都産業大学 | F36: 0 | G36: 0 | H36: 0 | I36: 0 | J36: 0 | K36: 0 | L36: 0 | M36: 0 | N36: D.N.S
A37: 35 | B37: 2 | C37: 19 | D37: 萩原 久樹 | E37: 立命館大学 | F37: 0 | G37: 0 | H37: 0 | I37: 0 | J37: 0 | K37: 0 | L37: 0 | M37: 0
L38: =IF($D38="","",SUM(F38,G38,H38,I38,J38,K38)) ->  | M38: =IF($D38="","",SUM(#REF!,#REF!,#REF!,#REF!,#REF!,#REF!)) -> 
M39: =IF($D39="","",SUM(#REF!,#REF!,#REF!,#REF!,#REF!,#REF!)) -> 
M40: =IF($D40="","",SUM(#REF!,#REF!,#REF!,#REF!,#REF!,#REF!)) -> 
M41: =IF($D41="","",SUM(#REF!,#REF!,#REF!,#REF!,#REF!,#REF!)) -> 
M42: =IF($D42="","",SUM(#REF!,#REF!,#REF!,#REF!,#REF!,#REF!)) -> 
M43: =IF($D43="","",SUM(#REF!,#REF!,#REF!,#REF!,#REF!,#REF!)) -> 
M44: =IF($D44="","",SUM(#REF!,#REF!,#REF!,#REF!,#REF!,#REF!)) -> 
M45: =IF($D45="","",SUM(#REF!,#REF!,#REF!,#REF!,#REF!,#REF!)) -> 
M46: =IF($D46="","",SUM(#REF!,#REF!,#REF!,#REF!,#REF!,#REF!)) -> 
M47: =IF($D47="","",SUM(#REF!,#REF!,#REF!,#REF!,#REF!,#REF!)) -> 
M48: =IF($D48="","",SUM(#REF!,#REF!,#REF!,#REF!,#REF!,#REF!)) -> 
M49: =IF($D49="","",SUM(#REF!,#REF!,#REF!,#REF!,#REF!,#REF!)) -> 
M50: =IF($D50="","",SUM(#REF!,#REF!,#REF!,#REF!,#REF!,#REF!)) -> 
M51: =IF($D51="","",SUM(#REF!,#REF!,#REF!,#REF!,#REF!,#REF!)) -> 
M52: =IF($D52="","",SUM(#REF!,#REF!,#REF!,#REF!,#REF!,#REF!)) -> 
M53: =IF($D53="","",SUM(#REF!,#REF!,#REF!,#REF!,#REF!,#REF!)) -> 
M54: =IF($D54="","",SUM(#REF!,#REF!,#REF!,#REF!,#REF!,#REF!)) -> 
M55: =IF($D55="","",SUM(#REF!,#REF!,#REF!,#REF!,#REF!,#REF!)) -> 
M56: =IF($D56="","",SUM(#REF!,#REF!,#REF!,#REF!,#REF!,#REF!)) -> 
M57: =IF($D57="","",SUM(#REF!,#REF!,#REF!,#REF!,#REF!,#REF!)) -> 
M58: =IF($D58="","",SUM(#REF!,#REF!,#REF!,#REF!,#REF!,#REF!)) -> 
M59: =IF($D59="","",SUM(#REF!,#REF!,#REF!,#REF!,#REF!,#REF!)) -> 
M60: =IF($D60="","",SUM(#REF!,#REF!,#REF!,#REF!,#REF!,#REF!)) -> 
M61: =IF($D61="","",SUM(#REF!,#REF!,#REF!,#REF!,#REF!,#REF!)) -> 
M62: =IF($D62="","",SUM(#REF!,#REF!,#REF!,#REF!,#REF!,#REF!)) -> 
M63: =IF($D63="","",SUM(#REF!,#REF!,#REF!,#REF!,#REF!,#REF!)) -> 
M64: =IF($D64="","",SUM(#REF!,#REF!,#REF!,#REF!,#REF!,#REF!)) -> 
M65: =IF($D65="","",SUM(#REF!,#REF!,#REF!,#REF!,#REF!,#REF!)) -> 
M66: =IF($D66="","",SUM(#REF!,#REF!,#REF!,#REF!,#REF!,#REF!)) -> 
M67: =IF($D67="","",SUM(#REF!,#REF!,#REF!,#REF!,#REF!,#REF!)) -> 
M68: =IF($D68="","",SUM(#REF!,#REF!,#REF!,#REF!,#REF!,#REF!)) -> 
M69: =IF($D69="","",SUM(#REF!,#REF!,#REF!,#REF!,#REF!,#REF!)) -> 
M70: =IF($D70="","",SUM(#REF!,#REF!,#REF!,#REF!,#REF!,#REF!)) -> 
M71: =IF($D71="","",SUM(#REF!,#REF!,#REF!,#REF!,#REF!,#REF!)) -> 
M72: =IF($D72="","",SUM(#REF!,#REF!,#REF!,#REF!,#REF!,#REF!)) -> 
M73: =IF($D73="","",SUM(#REF!,#REF!,#REF!,#REF!,#REF!,#REF!)) -> 
M74: =IF($D74="","",SUM(#REF!,#REF!,#REF!,#REF!,#REF!,#REF!)) -> 
M75: =IF($D75="","",SUM(#REF!,#REF!,#REF!,#REF!,#REF!,#REF!)) -> 
M76: =IF($D76="","",SUM(#REF!,#REF!,#REF!,#REF!,#REF!,#REF!)) -> 
M77: =IF($D77="","",SUM(#REF!,#REF!,#REF!,#REF!,#REF!,#REF!)) -> 
M78: =IF($D78="","",SUM(#REF!,#REF!,#REF!,#REF!,#REF!,#REF!)) -> 
M79: =IF($D79="","",SUM(#REF!,#REF!,#REF!,#REF!,#REF!,#REF!)) -> 
M80: =IF($D80="","",SUM(#REF!,#REF!,#REF!,#REF!,#REF!,#REF!)) -> 
M81: =IF($D81="","",SUM(#REF!,#REF!,#REF!,#REF!,#REF!,#REF!)) -> 
M82: =IF($D82="","",SUM(#REF!,#REF!,#REF!,#REF!,#REF!,#REF!)) -> 
M83: =IF($D83="","",SUM(#REF!,#REF!,#REF!,#REF!,#REF!,#REF!)) -> 
M84: =IF($D84="","",SUM(#REF!,#REF!,#REF!,#REF!,#REF!,#REF!)) -> 
M85: =IF($D85="","",SUM(#REF!,#REF!,#REF!,#REF!,#REF!,#REF!)) -> 
M86: =IF($D86="","",SUM(#REF!,#REF!,#REF!,#REF!,#REF!,#REF!)) -> 
M87: =IF($D87="","",SUM(#REF!,#REF!,#REF!,#REF!,#REF!,#REF!)) -> 
M88: =IF($D88="","",SUM(#REF!,#REF!,#REF!,#REF!,#REF!,#REF!)) -> 
M89: =IF($D89="","",SUM(#REF!,#REF!,#REF!,#REF!,#REF!,#REF!)) -> 
M90: =IF($D90="","",SUM(#REF!,#REF!,#REF!,#REF!,#REF!,#REF!)) -> 
M91: =IF($D91="","",SUM(#REF!,#REF!,#REF!,#REF!,#REF!,#REF!)) -> 
M92: =IF($D92="","",SUM(#REF!,#REF!,#REF!,#REF!,#REF!,#REF!)) -> 
M93: =IF($D93="","",SUM(#REF!,#REF!,#REF!,#REF!,#REF!,#REF!)) -> 
M94: =IF($D94="","",SUM(#REF!,#REF!,#REF!,#REF!,#REF!,#REF!)) -> 
M95: =IF($D95="","",SUM(#REF!,#REF!,#REF!,#REF!,#REF!,#REF!)) -> 
M96: =IF($D96="","",SUM(#REF!,#REF!,#REF!,#REF!,#REF!,#REF!)) -> 
M97: =IF($D97="","",SUM(#REF!,#REF!,#REF!,#REF!,#REF!,#REF!)) -> 
M98: =IF($D98="","",SUM(#REF!,#REF!,#REF!,#REF!,#REF!,#REF!)) -> 
M99: =IF($D99="","",SUM(#REF!,#REF!,#REF!,#REF!,#REF!,#REF!)) -> 
M100: =IF($D100="","",SUM(#REF!,#REF!,#REF!,#REF!,#REF!,#REF!)) -> 
M101: =IF($D101="","",SUM(#REF!,#REF!,#REF!,#REF!,#REF!,#REF!)) -> 
L102: =IF($D102="","",SUM(F102,G102,H102,I102,J102,K102)) ->  | M102: =IF($D102="","",SUM(#REF!,#REF!,#REF!,#REF!,#REF!,#REF!)) -> 
M103: =IF($D103="","",SUM(#REF!,#REF!,#REF!,#REF!,#REF!,#REF!)) -> 
M104: =IF($D104="","",SUM(#REF!,#REF!,#REF!,#REF!,#REF!,#REF!)) -> 
M105: =IF($D105="","",SUM(#REF!,#REF!,#REF!,#REF!,#REF!,#REF!)) -> 
M106: =IF($D106="","",SUM(#REF!,#REF!,#REF!,#REF!,#REF!,#REF!)) -> 
M107: =IF($D107="","",SUM(#REF!,#REF!,#REF!,#REF!,#REF!,#REF!)) -> 
M108: =IF($D108="","",SUM(#REF!,#REF!,#REF!,#REF!,#REF!,#REF!)) -> 
M109: =IF($D109="","",SUM(#REF!,#REF!,#REF!,#REF!,#REF!,#REF!)) -> 
M110: =IF($D110="","",SUM(#REF!,#REF!,#REF!,#REF!,#REF!,#REF!)) -> 
M111: =IF($D111="","",SUM(#REF!,#REF!,#REF!,#REF!,#REF!,#REF!)) -> 
M112: =IF($D112="","",SUM(#REF!,#REF!,#REF!,#REF!,#REF!,#REF!)) -> 
M113: =IF($D113="","",SUM(#REF!,#REF!,#REF!,#REF!,#REF!,#REF!)) -> 
M114: =IF($D114="","",SUM(#REF!,#REF!,#REF!,#REF!,#REF!,#REF!)) -> 
M115: =IF($D115="","",SUM(#REF!,#REF!,#REF!,#REF!,#REF!,#REF!)) -> 
M116: =IF($D116="","",SUM(#REF!,#REF!,#REF!,#REF!,#REF!,#REF!)) -> 
M117: =IF($D117="","",SUM(#REF!,#REF!,#REF!,#REF!,#REF!,#REF!)) -> 
M118: =IF($D118="","",SUM(#REF!,#REF!,#REF!,#REF!,#REF!,#REF!)) -> 
M119: =IF($D119="","",SUM(#REF!,#REF!,#REF!,#REF!,#REF!,#REF!)) -> 
M120: =IF($D120="","",SUM(#REF!,#REF!,#REF!,#REF!,#REF!,#REF!)) -> 
M121: =IF($D121="","",SUM(#REF!,#REF!,#REF!,#REF!,#REF!,#REF!)) -> 
M122: =IF($D122="","",SUM(#REF!,#REF!,#REF!,#REF!,#REF!,#REF!)) -> 
M123: =IF($D123="","",SUM(#REF!,#REF!,#REF!,#REF!,#REF!,#REF!)) -> 
M124: =IF($D124="","",SUM(#REF!,#REF!,#REF!,#REF!,#REF!,#REF!)) -> 
M125: =IF($D125="","",SUM(#REF!,#REF!,#REF!,#REF!,#REF!,#REF!)) -> 
M126: =IF($D126="","",SUM(#REF!,#REF!,#REF!,#REF!,#REF!,#REF!)) -> 
M127: =IF($D127="","",SUM(#REF!,#REF!,#REF!,#REF!,#REF!,#REF!)) -> 
M128: =IF($D128="","",SUM(#REF!,#REF!,#REF!,#REF!,#REF!,#REF!)) -> 
M129: =IF($D129="","",SUM(#REF!,#REF!,#REF!,#REF!,#REF!,#REF!)) -> 
M130: =IF($D130="","",SUM(#REF!,#REF!,#REF!,#REF!,#REF!,#REF!)) -> 
M131: =IF($D131="","",SUM(#REF!,#REF!,#REF!,#REF!,#REF!,#REF!)) -> 
M132: =IF($D132="","",SUM(#REF!,#REF!,#REF!,#REF!,#REF!,#REF!)) -> 
M133: =IF($D133="","",SUM(#REF!,#REF!,#REF!,#REF!,#REF!,#REF!)) -> 
M134: =IF($D134="","",SUM(#REF!,#REF!,#REF!,#REF!,#REF!,#REF!)) -> 
M135: =IF($D135="","",SUM(#REF!,#REF!,#REF!,#REF!,#REF!,#REF!)) -> 
M136: =IF($D136="","",SUM(#REF!,#REF!,#REF!,#REF!,#REF!,#REF!)) -> 
M137: =IF($D137="","",SUM(#REF!,#REF!,#REF!,#REF!,#REF!,#REF!)) -> 
M138: =IF($D138="","",SUM(#REF!,#REF!,#REF!,#REF!,#REF!,#REF!)) -> 
M139: =IF($D139="","",SUM(#REF!,#REF!,#REF!,#REF!,#REF!,#REF!)) -> 
M140: =IF($D140="","",SUM(#REF!,#REF!,#REF!,#REF!,#REF!,#REF!)) -> 
M141: =IF($D141="","",SUM(#REF!,#REF!,#REF!,#REF!,#REF!,#REF!)) -> 
M142: =IF($D142="","",SUM(#REF!,#REF!,#REF!,#REF!,#REF!,#REF!)) -> 
M143: =IF($D143="","",SUM(#REF!,#REF!,#REF!,#REF!,#REF!,#REF!)) -> 
M144: =IF($D144="","",SUM(#REF!,#REF!,#REF!,#REF!,#REF!,#REF!)) -> 
M145: =IF($D145="","",SUM(#REF!,#REF!,#REF!,#REF!,#REF!,#REF!)) -> 
M146: =IF($D146="","",SUM(#REF!,#REF!,#REF!,#REF!,#REF!,#REF!)) -> 
M147: =IF($D147="","",SUM(#REF!,#REF!,#REF!,#REF!,#REF!,#REF!)) -> 
M148: =IF($D148="","",SUM(#REF!,#REF!,#REF!,#REF!,#REF!,#REF!)) -> 
M149: =IF($D149="","",SUM(#REF!,#REF!,#REF!,#REF!,#REF!,#REF!)) -> 
M150: =IF($D150="","",SUM(#REF!,#REF!,#REF!,#REF!,#REF!,#REF!)) -> 
M151: =IF($D151="","",SUM(#REF!,#REF!,#REF!,#REF!,#REF!,#REF!)) -> 
M152: =IF($D152="","",SUM(#REF!,#REF!,#REF!,#REF!,#REF!,#REF!)) -> 
M153: =IF($D153="","",SUM(#REF!,#REF!,#REF!,#REF!,#REF!,#REF!)) -> 
M154: =IF($D154="","",SUM(#REF!,#REF!,#REF!,#REF!,#REF!,#REF!)) -> 
M155: =IF($D155="","",SUM(#REF!,#REF!,#REF!,#REF!,#REF!,#REF!)) -> 
M156: =IF($D156="","",SUM(#REF!,#REF!,#REF!,#REF!,#REF!,#REF!)) -> 
M157: =IF($D157="","",SUM(#REF!,#REF!,#REF!,#REF!,#REF!,#REF!)) -> 
M158: =IF($D158="","",SUM(#REF!,#REF!,#REF!,#REF!,#REF!,#REF!)) -> 
M159: =IF($D159="","",SUM(#REF!,#REF!,#REF!,#REF!,#REF!,#REF!)) -> 
M160: =IF($D160="","",SUM(#REF!,#REF!,#REF!,#REF!,#REF!,#REF!)) -> 
M161: =IF($D161="","",SUM(#REF!,#REF!,#REF!,#REF!,#REF!,#REF!)) -> 
M162: =IF($D162="","",SUM(#REF!,#REF!,#REF!,#REF!,#REF!,#REF!)) -> 
M163: =IF($D163="","",SUM(#REF!,#REF!,#REF!,#REF!,#REF!,#REF!)) -> 
M164: =IF($D164="","",SUM(#REF!,#REF!,#REF!,#REF!,#REF!,#REF!)) -> 
M165: =IF($D165="","",SUM(#REF!,#REF!,#REF!,#REF!,#REF!,#REF!)) -> 
L166: =IF($D166="","",SUM(F166,G166,H166,I166,J166,K166)) ->  | M166: =IF($D166="","",SUM(#REF!,#REF!,#REF!,#REF!,#REF!,#REF!)) -> 
M167: =IF($D167="","",SUM(#REF!,#REF!,#REF!,#REF!,#REF!,#REF!)) -> 
M168: =IF($D168="","",SUM(#REF!,#REF!,#REF!,#REF!,#REF!,#REF!)) -> 
M169: =IF($D169="","",SUM(#REF!,#REF!,#REF!,#REF!,#REF!,#REF!)) -> 
M170: =IF($D170="","",SUM(#REF!,#REF!,#REF!,#REF!,#REF!,#REF!)) -> 
M171: =IF($D171="","",SUM(#REF!,#REF!,#REF!,#REF!,#REF!,#REF!)) -> 
M172: =IF($D172="","",SUM(#REF!,#REF!,#REF!,#REF!,#REF!,#REF!)) -> 
M173: =IF($D173="","",SUM(#REF!,#REF!,#REF!,#REF!,#REF!,#REF!)) -> 
M174: =IF($D174="","",SUM(#REF!,#REF!,#REF!,#REF!,#REF!,#REF!)) -> 
M175: =IF($D175="","",SUM(#REF!,#REF!,#REF!,#REF!,#REF!,#REF!)) -> 
M176: =IF($D176="","",SUM(#REF!,#REF!,#REF!,#REF!,#REF!,#REF!)) -> 
M177: =IF($D177="","",SUM(#REF!,#REF!,#REF!,#REF!,#REF!,#REF!)) -> 
M178: =IF($D178="","",SUM(#REF!,#REF!,#REF!,#REF!,#REF!,#REF!)) -> 
M179: =IF($D179="","",SUM(#REF!,#REF!,#REF!,#REF!,#REF!,#REF!)) -> 
M180: =IF($D180="","",SUM(#REF!,#REF!,#REF!,#REF!,#REF!,#REF!)) -> 
M181: =IF($D181="","",SUM(#REF!,#REF!,#REF!,#REF!,#REF!,#REF!)) -> 
M182: =IF($D182="","",SUM(#REF!,#REF!,#REF!,#REF!,#REF!,#REF!)) -> 
M183: =IF($D183="","",SUM(#REF!,#REF!,#REF!,#REF!,#REF!,#REF!)) -> 
M184: =IF($D184="","",SUM(#REF!,#REF!,#REF!,#REF!,#REF!,#REF!)) -> 
M185: =IF($D185="","",SUM(#REF!,#REF!,#REF!,#REF!,#REF!,#REF!)) -> 
M186: =IF($D186="","",SUM(#REF!,#REF!,#REF!,#REF!,#REF!,#REF!)) -> 
M187: =IF($D187="","",SUM(#REF!,#REF!,#REF!,#REF!,#REF!,#REF!)) -> 
M188: =IF($D188="","",SUM(#REF!,#REF!,#REF!,#REF!,#REF!,#REF!)) -> 
M189: =IF($D189="","",SUM(#REF!,#REF!,#REF!,#REF!,#REF!,#REF!)) -> 
M190: =IF($D190="","",SUM(#REF!,#REF!,#REF!,#REF!,#REF!,#REF!)) -> 
M191: =IF($D191="","",SUM(#REF!,#REF!,#REF!,#REF!,#REF!,#REF!)) -> 
M192: =IF($D192="","",SUM(#REF!,#REF!,#REF!,#REF!,#REF!,#REF!)) -> 
M193: =IF($D193="","",SUM(#REF!,#REF!,#REF!,#REF!,#REF!,#REF!)) -> 
M194: =IF($D194="","",SUM(#REF!,#REF!,#REF!,#REF!,#REF!,#REF!)) -> 
M195: =IF($D195="","",SUM(#REF!,#REF!,#REF!,#REF!,#REF!,#REF!)) -> 
M196: =IF($D196="","",SUM(#REF!,#REF!,#REF!,#REF!,#REF!,#REF!)) -> 
M197: =IF($D197="","",SUM(#REF!,#REF!,#REF!,#REF!,#REF!,#REF!)) -> 
M198: =IF($D198="","",SUM(#REF!,#REF!,#REF!,#REF!,#REF!,#REF!)) -> 
M199: =IF($D199="","",SUM(#REF!,#REF!,#REF!,#REF!,#REF!,#REF!)) -> 
M200: =IF($D200="","",SUM(#REF!,#REF!,#REF!,#REF!,#REF!,#REF!)) -> 
... 65 more rows

Sheet 10mS60MWFINAL
A2: Rank | B2: Bib No | C2: Name | D2: Univ | E2: 1st Comp. Stage | G2: 2nd Competition - Elimination | N2: Total | O2: Remarks
A4: 1 | B4: B | C4: おかもと かずき | D4: 関西大学 | E4: =E5+E6+E7 -> 30 | F4: =E4+F5+F6+F7 -> 59.8 | G4: 80.3 | H4: 100.6 | I4: 121.4 | J4: 141.6 | K4: 161 | L4: 181.2 | M4: 199.8 | N4: =M4 -> 199.8
C5: 岡本 和樹 | E5: 9.3 | F5: 10 | G5: 10.3 | H5: 10.4 | I5: 10.5 | J5: 10 | K5: 9.9 | L5: 10.4 | M5: 10.2
E6: 10 | F6: 9.3 | G6: 10.2 | H6: 9.9 | I6: 10.3 | J6: 10.2 | K6: 9.5 | L6: 9.8 | M6: 8.4
E7: 10.7 | F7: 10.5
A9: 2 | B9: E | C9: じんぼ あかね | D9: 立命館大学 | E9: =E10+E11+E12 -> 29 | F9: =E9+F10+F11+F12 -> 59 | G9: 78.5 | H9: 98.8 | I9: 118.5 | J9: 138.5 | K9: 159.3 | L9: 178.5 | M9: 198.4 | N9: =M9 -> 198.4
C10: 神保 茜 | E10: 8.1 | F10: 10.2 | G10: 9.7 | H10: 9.7 | I10: 9.1 | J10: 10.1 | K10: 10.2 | L10: 8.9 | M10: 10.5
E11: 10.1 | F11: 10.1 | G11: 9.8 | H11: 10.6 | I11: 10.6 | J11: 9.9 | K11: 10.6 | L11: 10.3 | M11: 9.4
E12: 10.8 | F12: 9.7
A14: 3 | B14: D | C14: すずき りさこ | D14: 関西大学 | E14: =E15+E16+E17 -> 28.5 | F14: =E14+F15+F16+F17 -> 58.4 | G14: 79 | H14: 98.7 | I14: 117.8 | J14: 138.3 | K14: 157.2 | L14: 175.7 | N14: =L14 -> 175.7
C15: 鈴木 梨紗子 | E15: 9.4 | F15: 9.3 | G15: 10.6 | H15: 9.4 | I15: 10.2 | J15: 10.2 | K15: 8.9 | L15: 10.3
E16: 10 | F16: 10.2 | G16: 10 | H16: 10.3 | I16: 8.9 | J16: 10.3 | K16: 10 | L16: 8.2
E17: 9.1 | F17: 10.4
A19: 4 | B19: A | C19: まつはば あゆ | D19: 立命館大学 | E19: =E20+E21+E22 -> 29.1 | F19: =E19+F20+F21+F22 -> 58.9 | G19: 77.8 | H19: 96.9 | I19: 116.9 | J19: 136.4 | K19: 155.4 | N19: =K19 -> 155.4
C20: 松巾 亜由 | E20: 10.2 | F20: 9.4 | G20: 8.6 | H20: 9.4 | I20: 9.9 | J20: 9 | K20: 9.3
E21: 9.5 | F21: 10.3 | G21: 10.3 | H21: 9.7 | I21: 10.1 | J21: 10.5 | K21: 9.7
E22: 9.4 | F22: 10.1
A24: 5 | B24: C | C24: かただ みちる | D24: 関西大学 | E24: =E25+E26+E27 -> 29.3 | F24: =E24+F25+F26+F27 -> 57.1 | G24: =F24+G25+G26+G27 -> 75.5 | H24: =G24+H25+H26+H27 -> 97.2 | I24: =H24+I25+I26+I27 -> 116.7 | J24: =I24+J25+J26+J27 -> 135.3 | N24: =J24 -> 135.3
C25: 堅田 みちる | E25: 10.3 | F25: 7.9 | G25: 7.7 | H25: 10.8 | I25: 10.8 | J25: 10.2
E26: 10.5 | F26: 9.8 | G26: 10.7 | H26: 10.9 | I26: 8.7 | J26: 8.4
E27: 8.5 | F27: 10.1
A29: 6 | B29: G | C29: つだ ちえ | D29: 関西大学 | E29: =E30+E31+E32 -> 27.3 | F29: =E29+F30+F31+F32 -> 56.2 | G29: =F29+G30+G31+G32 -> 75.2 | H29: =G29+H30+H31+H32 -> 94.5 | I29: =H29+I30+I31+I32 -> 115.7 | N29: =I29 -> 115.7
C30: 津田 智永 | E30: 8 | F30: 9.6 | G30: 9.4 | H30: 10.2 | I30: 10.6
E31: 10.4 | F31: 10.1 | G31: 9.6 | H31: 9.1 | I31: 10.6
E32: 8.9 | F32: 9.2
A34: 7 | B34: H | C34: おりはら かずき | D34: 関西大学 | E34: 0 | F34: 0 | G34: 0 | H34: 0 | N34: 0
C35: 折原 和希 | E35: 0 | F35: 0 | G35: 0 | H35: 0
E36: 0 | F36: 0 | G36: 0 | H36: 0
E37: 0 | F37: 0

Sheet 10mS60MW 団体
A1: 学 校 名 | B1: 射群 | C1: 射座 | D1: 名 前 | E1: Ｓ１ | F1: X | G1: Ｓ２ | H1: X | I1: Ｓ３ | J1: X | K1: Ｓ４ | L1: X | M1: Ｓ５ | N1: X | O1: Ｓ６ | P1: X | Q1: 得 点 | R1: X | S1: 合 計 | T1: 順位 | U1: 備考
A2: 関西大学 | B2: 1 | C2: 12 | D2: 岡本 和樹 | E2: 98 | F2: 6 | G2: 95 | H2: 4 | I2: 96 | J2: 2 | K2: 97 | L2: 5 | M2: 96 | N2: 4 | O2: 99 | P2: 9 | Q2: 581 | R2: 30 | S2: 1732 | T2: 1
B3: 1 | C3: 20 | D3: 堅田 みちる | E3: 96 | F3: 5 | G3: 95 | H3: 3 | I3: 97 | J3: 5 | K3: 98 | L3: 5 | M3: 96 | N3: 4 | O3: 99 | P3: 7 | Q3: 581 | R3: 29
B4: 2 | C4: 12 | D4: 津田 智永 | E4: 93 | F4: 3 | G4: 97 | H4: 7 | I4: 96 | J4: 4 | K4: 93 | L4: 4 | M4: 97 | N4: 6 | O4: 94 | P4: 4 | Q4: 570 | R4: 28
A5: [補欠] | B5: 2 | C5: 20 | D5: 鈴木 梨紗子 | E5: 97 | F5: 5 | G5: 95 | H5: 4 | I5: 97 | J5: 5 | K5: 96 | L5: 3 | M5: 95 | N5: 3 | O5: 96 | P5: 4 | Q5: 576 | R5: 24
A7: 学 校 名 | B7: 射群 | C7: 射座 | D7: 名 前 | E7: Ｓ１ | F7: X | G7: Ｓ２ | H7: X | I7: Ｓ３ | J7: X | K7: Ｓ４ | L7: X | M7: Ｓ５ | N7: X | O7: Ｓ６ | P7: X | Q7: 得 点 | R7: X | S7: 合 計 | T7: 順位 | U7: 備考
A8: 立命館大学 | B8: 1 | C8: 11 | D8: 奥村 哲弘 | E8: 93 | F8: 2 | G8: 96 | H8: 5 | I8: 95 | J8: 5 | K8: 93 | L8: 4 | M8: 95 | N8: 4 | O8: 94 | P8: 4 | Q8: 566 | R8: 24 | S8: 1729 | T8: 2
B9: 1 | C9: 19 | D9: 神保 茜 | E9: 92 | F9: 3 | G9: 98 | H9: 6 | I9: 98 | J9: 5 | K9: 94 | L9: 5 | M9: 98 | N9: 6 | O9: 95 | P9: 5 | Q9: 575 | R9: 30
B10: 2 | C10: 11 | D10: 松巾 亜由 | E10: 97 | F10: 7 | G10: 97 | H10: 6 | I10: 98 | J10: 7 | K10: 97 | L10: 6 | M10: 99 | N10: 8 | O10: 100 | P10: 9 | Q10: 588 | R10: 43
A11: [補欠] | B11: 2 | C11: 19 | D11: 萩原 久樹 | E11: 0 | F11: 0 | G11: 0 | H11: 0 | I11: 0 | J11: 0 | K11: 0 | L11: 0 | M11: 0 | N11: 0 | O11: 0 | P11: 0 | Q11: 0 | R11: 0
A13: 学 校 名 | B13: 射群 | C13: 射座 | D13: 名 前 | E13: Ｓ１ | F13: X | G13: Ｓ２ | H13: X | I13: Ｓ３ | J13: X | K13: Ｓ４ | L13: X | M13: Ｓ５ | N13: X | O13: Ｓ６ | P13: X | Q13: 得 点 | R13: X | S13: 合 計 | T13: 順位 | U13: 備考
A14: 京都大学 | B14: 1 | C14: 5 | D14: 西行 優子 | E14: 88 | F14: 1 | G14: 87 | H14: 1 | I14: 91 | J14: 3 | K14: 90 | L14: 3 | M14: 88 | N14: 3 | O14: 92 | P14: 0 | Q14: 536 | R14: 11 | S14: 1600 | T14: 3
B15: 1 | C15: 15 | D15: 蛭田 裕之 | E15: 84 | F15: 0 | G15: 85 | H15: 2 | I15: 85 | J15: 0 | K15: 89 | L15: 3 | M15: 91 | N15: 2 | O15: 87 | P15: 1 | Q15: 521 | R15: 8
B16: 2 | C16: 15 | D16: 千代田 真一 | E16: 93 | F16: 4 | G16: 93 | H16: 4 | I16: 85 | J16: 1 | K16: 93 | L16: 1 | M16: 91 | N16: 3 | O16: 88 | P16: 2 | Q16: 543 | R16: 15
A17: [補欠] | B17: 2 | C17: 4 | D17: 宮田 佳奈子 | E17: 90 | F17: 2 | G17: 89 | H17: 1 | I17: 88 | J17: 1 | K17: 91 | L17: 1 | M17: 93 | N17: 4 | O17: 91 | P17: 3 | Q17: 542 | R17: 12
A19: 学 校 名 | B19: 射群 | C19: 射座 | D19: 名 前 | E19: Ｓ１ | F19: X | G19: Ｓ２ | H19: X | I19: Ｓ３ | J19: X | K19: Ｓ４ | L19: X | M19: Ｓ５ | N19: X | O19: Ｓ６ | P19: X | Q19: 得 点 | R19: X | S19: 合 計 | T19: 順位 | U19: 備考
A20: 関西学院大学 | B20: 1 | C20: 14 | D20: 待場 直宏 | E20: 89 | F20: 1 | G20: 87 | H20: 0 | I20: 94 | J20: 1 | K20: 92 | L20: 2 | M20: 97 | N20: 3 | O20: 88 | P20: 1 | Q20: 547 | R20: 8 | S20: 1590 | T20: 4
B21: 1 | C21: 22 | D21: 織野 友嘉 | E21: 89 | F21: 1 | G21: 92 | H21: 1 | I21: 92 | J21: 2 | K21: 87 | L21: 0 | M21: 92 | N21: 3 | O21: 94 | P21: 5 | Q21: 546 | R21: 12
B22: 2 | C22: 14 | D22: 木村 祐貴 | E22: 84 | F22: 1 | G22: 80 | H22: 0 | I22: 78 | J22: 0 | K22: 78 | L22: 1 | M22: 87 | N22: 1 | O22: 90 | P22: 2 | Q22: 497 | R22: 5
A23: [補欠]
A25: 学 校 名 | B25: 射群 | C25: 射座 | D25: 名 前 | E25: Ｓ１ | F25: X | G25: Ｓ２ | H25: X | I25: Ｓ３ | J25: X | K25: Ｓ４ | L25: X | M25: Ｓ５ | N25: X | O25: Ｓ６ | P25: X | Q25: 得 点 | R25: X | S25: 合 計 | T25: 順位 | U25: 備考
A26: 同志社大学 | B26: 1 | C26: 13 | D26: 山口 滉太朗 | E26: 95 | F26: 1 | G26: 90 | H26: 2 | I26: 94 | J26: 5 | K26: 93 | L26: 5 | M26: 87 | N26: 5 | O26: 55 | P26: 1 | Q26: 514 | R26: 19 | S26: 1589 | T26: 5
B27: 1 | C27: 21 | D27: 家高 郁子 | E27: 93 | F27: 3 | G27: 92 | H27: 3 | I27: 90 | J27: 1 | K27: 90 | L27: 3 | M27: 94 | N27: 4 | O27: 89 | P27: 1 | Q27: 548 | R27: 15
B28: 2 | C28: 13 | D28: 竹下 力 | E28: 88 | F28: 0 | G28: 79 | H28: 0 | I28: 92 | J28: 2 | K28: 86 | L28: 2 | M28: 95 | N28: 1 | O28: 87 | P28: 1 | Q28: 527 | R28: 6
A29: [補欠] | B29: 2 | C29: 21 | D29: 川本 隼也 | E29: 72 | F29: 0 | G29: 84 | H29: 1 | I29: 72 | J29: 0 | K29: 84 | L29: 0 | M29: 88 | N29: 2 | O29: 82 | P29: 1 | Q29: 482 | R29: 4
A31: 学 校 名 | B31: 射群 | C31: 射座 | D31: 名 前 | E31: Ｓ１ | F31: X | G31: Ｓ２ | H31: X | I31: Ｓ３ | J31: X | K31: Ｓ４ | L31: X | M31: Ｓ５ | N31: X | O31: Ｓ６ | P31: X | Q31: 得 点 | R31: X | S31: 合 計 | T31: 順位 | U31: 備考
A32: 京都産業大学 | B32: 1 | C32: 16 | D32: 田上 諒 | E32: 89 | F32: 1 | G32: 96 | H32: 6 | I32: 94 | J32: 3 | K32: 92 | L32: 2 | M32: 92 | N32: 1 | O32: 95 | P32: 5 | Q32: 558 | R32: 18 | S32: 1130 | T32: 6
B33: 1 | C33: 24 | D33: 桝谷 大貴 | E33: 0 | F33: 0 | G33: 0 | H33: 0 | I33: 0 | J33: 0 | K33: 0 | L33: 0 | M33: 0 | N33: 0 | O33: 0 | P33: 0 | Q33: 0 | R33: 0
B34: 2 | C34: 16 | D34: 高原 康輝 | E34: 96 | F34: 4 | G34: 94 | H34: 2 | I34: 98 | J34: 3 | K34: 95 | L34: 4 | M34: 93 | N34: 1 | O34: 96 | P34: 5 | Q34: 572 | R34: 19
A35: [補欠]
A37: 学 校 名 | B37: 射群 | C37: 射座 | D37: 名 前 | E37: Ｓ１ | F37: X | G37: Ｓ２ | H37: X | I37: Ｓ３ | J37: X | K37: Ｓ４ | L37: X | M37: Ｓ５ | N37: X | O37: Ｓ６ | P37: X | Q37: 得 点 | R37: X | S37: 合 計 | T37: 順位 | U37: 備考
S38: =SUM(Q38:Q40) -> 0 | T38: =RANK(S38,S:S) -> 7
A41: [補欠]
A43: 学 校 名 | B43: 射群 | C43: 射座 | D43: 名 前 | E43: Ｓ１ | F43: X | G43: Ｓ２ | H43: X | I43: Ｓ３ | J43: X | K43: Ｓ４ | L43: X | M43: Ｓ５ | N43: X | O43: Ｓ６ | P43: X | Q43: 得 点 | R43: X | S43: 合 計 | T43: 順位 | U43: 備考
S44: =SUM(Q44:Q46) -> 0 | T44: =RANK(S44,S:S) -> 7
A47: [補欠]
A49: 学 校 名 | B49: 射群 | C49: 射座 | D49: 名 前 | E49: Ｓ１ | F49: X | G49: Ｓ２ | H49: X | I49: Ｓ３ | J49: X | K49: Ｓ４ | L49: X | M49: Ｓ５ | N49: X | O49: Ｓ６ | P49: X | Q49: 得 点 | R49: X | S49: 合 計 | T49: 順位 | U49: 備考
S50: =SUM(Q50:Q52) -> 0 | T50: =RANK(S50,S:S) -> 7
A53: [補欠]
A55: 学 校 名 | B55: 射群 | C55: 射座 | D55: 名 前 | E55: Ｓ１ | F55: X | G55: Ｓ２ | H55: X | I55: Ｓ３ | J55: X | K55: Ｓ４ | L55: X | M55: Ｓ５ | N55: X | O55: Ｓ６ | P55: X | Q55: 得 点 | R55: X | S55: 合 計 | T55: 順位 | U55: 備考
S56: =SUM(Q56:Q58) -> 0 | T56: =RANK(S56,S:S) -> 7
A59: [補欠]
A61: 学 校 名 | B61: 射群 | C61: 射座 | D61: 名 前 | E61: Ｓ１ | F61: X | G61: Ｓ２ | H61: X | I61: Ｓ３ | J61: X | K61: Ｓ４ | L61: X | M61: Ｓ５ | N61: X | O61: Ｓ６ | P61: X | Q61: 得 点 | R61: X | S61: 合 計 | T61: 順位 | U61: 備考
S62: =SUM(Q62:Q64) -> 0 | T62: =RANK(S62,S:S) -> 7
A65: [補欠]
A67: 学 校 名 | B67: 射群 | C67: 射座 | D67: 名 前 | E67: Ｓ１ | F67: X | G67: Ｓ２ | H67: X | I67: Ｓ３ | J67: X | K67: Ｓ４ | L67: X | M67: Ｓ５ | N67: X | O67: Ｓ６ | P67: X | Q67: 得 点 | R67: X | S67: 合 計 | T67: 順位 | U67: 備考
S68: =SUM(Q68:Q70) -> 0 | T68: =RANK(S68,S:S) -> 7
A71: [補欠]

Sheet 10m3x20MW 入力発表
A1: 順位 | B1: 射群 | C1: 射座 | D1: 名 前 | E1: 学校名 | F1: K1 | G1: K2 | H1: P1 | I1: P2 | J1: S1 | K1: S2 | L1: 合 計 | M1: X | N1: 備考
A2: 1 | B2: x | C2: 5 | D2: 西田 寛 | E2: 甲南大学 | F2: 94 | G2: 98 | H2: 98 | I2: 98 | J2: 94 | K2: 94 | L2: 576 | M2: 34 | N2: X=34
A3: 2 | B3: x | C3: 9 | D3: 景山 拓朗 | E3: 関西学院大学 | F3: 95 | G3: 97 | H3: 100 | I3: 96 | J3: 95 | K3: 93 | L3: 576 | M3: 28 | N3: X=28
A4: 3 | B4: x | C4: 12 | D4: 奥村 哲弘 | E4: 立命館大学 | F4: 92 | G4: 87 | H4: 97 | I4: 99 | J4: 97 | K4: 96 | L4: 568 | M4: 26
A5: 4 | B5: x | C5: 25 | D5: 松田 真吾 | E5: 京都産業大学 | F5: 86 | G5: 92 | H5: 99 | I5: 98 | J5: 93 | K5: 94 | L5: 562 | M5: 26 | N5: X=26
A6: 5 | B6: x | C6: 16 | D6: 高木 悠 | E6: 関西学院大学 | F6: 90 | G6: 93 | H6: 97 | I6: 95 | J6: 95 | K6: 92 | L6: 562 | M6: 20 | N6: X=20
A7: 6 | B7: x | C7: 27 | D7: 中田 大介 | E7: 京都大学 | F7: 96 | G7: 93 | H7: 99 | I7: 97 | J7: 87 | K7: 87 | L7: 559 | M7: 24
A8: 7 | B8: x | C8: 15 | D8: 中村 雄太 | E8: 京都大学 | F8: 87 | G8: 94 | H8: 97 | I8: 94 | J8: 92 | K8: 94 | L8: 558 | M8: 16
A9: 8 | B9: x | C9: 23 | D9: 大谷 秀 | E9: 甲南大学 | F9: 92 | G9: 93 | H9: 96 | I9: 93 | J9: 93 | K9: 90 | L9: 557 | M9: 17
A10: 9 | B10: x | C10: 3 | D10: 菅原 康之 | E10: 京都大学 | F10: 90 | G10: 91 | H10: 97 | I10: 94 | J10: 89 | K10: 93 | L10: 554 | M10: 14
A11: 10 | B11: x | C11: 20 | D11: 西田 康祐 | E11: 近畿大学 | F11: 89 | G11: 92 | H11: 97 | I11: 97 | J11: 91 | K11: 87 | L11: 553 | M11: 20
A12: 11 | B12: x | C12: 28 | D12: 副島 隆志 | E12: 甲南大学 | F12: 89 | G12: 92 | H12: 94 | I12: 92 | J12: 93 | K12: 92 | L12: 552 | M12: 14
A13: 12 | B13: x | C13: 13 | D13: 後藤 陸 | E13: 京都大学 | F13: 92 | G13: 91 | H13: 92 | I13: 92 | J13: 89 | K13: 89 | L13: 545 | M13: 10
A14: 13 | B14: x | C14: 8 | D14: 高橋 孝介 | E14: 甲南大学 | F14: 90 | G14: 89 | H14: 90 | I14: 95 | J14: 90 | K14: 90 | L14: 544 | M14: 17
A15: 14 | B15: x | C15: 17 | D15: 貴志 亮飛 | E15: 甲南大学 | F15: 76 | G15: 79 | H15: 99 | I15: 94 | J15: 92 | K15: 93 | L15: 533 | M15: 12
A16: 15 | B16: x | C16: 7 | D16: 有本 樹 | E16: 京都大学 | F16: 85 | G16: 83 | H16: 91 | I16: 93 | J16: 89 | K16: 90 | L16: 531 | M16: 17
A17: 16 | B17: x | C17: 6 | D17: 楢橋 広基 | E17: 大阪大学 | F17: 86 | G17: 92 | H17: 87 | I17: 93 | J17: 84 | K17: 87 | L17: 529 | M17: 8
A18: 17 | B18: x | C18: 18 | D18: 比舍 昌志 | E18: 京都大学 | F18: 87 | G18: 86 | H18: 97 | I18: 88 | J18: 88 | K18: 80 | L18: 526 | M18: 10
A19: 18 | B19: x | C19: 10 | D19: 大林 秀行 | E19: 京都大学 | F19: 82 | G19: 89 | H19: 90 | I19: 93 | J19: 85 | K19: 85 | L19: 524 | M19: 6
A20: 19 | B20: x | C20: 14 | D20: 鷹取 幹基 | E20: 甲南大学 | F20: 86 | G20: 89 | H20: 88 | I20: 87 | J20: 81 | K20: 84 | L20: 515 | M20: 8
A21: 20 | B21: x | C21: 24 | D21: 渡邉 武之 | E21: 京都大学 | F21: 0 | G21: 0 | H21: 0 | I21: 0 | J21: 0 | K21: 0 | L21: 0 | M21: 0 | N21: D.N.S
A22: 20 | B22: x | C22: 31 | D22: 大西 杏奈 | E22: 甲南大学 | F22: 0 | G22: 0 | H22: 0 | I22: 0 | J22: 0 | K22: 0 | L22: 0 | M22: 0 | N22: D.N.S
L23: =IF($D23="","",SUM(F23,G23,H23,I23,J23,K23)) ->  | M23: =IF($D23="","",SUM(#REF!,#REF!,#REF!,#REF!,#REF!,#REF!)) -> 
M24: =IF($D24="","",SUM(#REF!,#REF!,#REF!,#REF!,#REF!,#REF!)) -> 
M25: =IF($D25="","",SUM(#REF!,#REF!,#REF!,#REF!,#REF!,#REF!)) -> 
M26: =IF($D26="","",SUM(#REF!,#REF!,#REF!,#REF!,#REF!,#REF!)) -> 
M27: =IF($D27="","",SUM(#REF!,#REF!,#REF!,#REF!,#REF!,#REF!)) -> 
M28: =IF($D28="","",SUM(#REF!,#REF!,#REF!,#REF!,#REF!,#REF!)) -> 
M29: =IF($D29="","",SUM(#REF!,#REF!,#REF!,#REF!,#REF!,#REF!)) -> 
M30: =IF($D30="","",SUM(#REF!,#REF!,#REF!,#REF!,#REF!,#REF!)) -> 
M31: =IF($D31="","",SUM(#REF!,#REF!,#REF!,#REF!,#REF!,#REF!)) -> 
M32: =IF($D32="","",SUM(#REF!,#REF!,#REF!,#REF!,#REF!,#REF!)) -> 
M33: =IF($D33="","",SUM(#REF!,#REF!,#REF!,#REF!,#REF!,#REF!)) -> 
M34: =IF($D34="","",SUM(#REF!,#REF!,#REF!,#REF!,#REF!,#REF!)) -> 
M35: =IF($D35="","",SUM(#REF!,#REF!,#REF!,#REF!,#REF!,#REF!)) -> 
M36: =IF($D36="","",SUM(#REF!,#REF!,#REF!,#REF!,#REF!,#REF!)) -> 
M37: =IF($D37="","",SUM(#REF!,#REF!,#REF!,#REF!,#REF!,#REF!)) -> 
M38: =IF($D38="","",SUM(#REF!,#REF!,#REF!,#REF!,#REF!,#REF!)) -> 
M39: =IF($D39="","",SUM(#REF!,#REF!,#REF!,#REF!,#REF!,#REF!)) -> 
M40: =IF($D40="","",SUM(#REF!,#REF!,#REF!,#REF!,#REF!,#REF!)) -> 
M41: =IF($D41="","",SUM(#REF!,#REF!,#REF!,#REF!,#REF!,#REF!)) -> 
M42: =IF($D42="","",SUM(#REF!,#REF!,#REF!,#REF!,#REF!,#REF!)) -> 
M43: =IF($D43="","",SUM(#REF!,#REF!,#REF!,#REF!,#REF!,#REF!)) -> 
M44: =IF($D44="","",SUM(#REF!,#REF!,#REF!,#REF!,#REF!,#REF!)) -> 
M45: =IF($D45="","",SUM(#REF!,#REF!,#REF!,#REF!,#REF!,#REF!)) -> 
M46: =IF($D46="","",SUM(#REF!,#REF!,#REF!,#REF!,#REF!,#REF!)) -> 
M47: =IF($D47="","",SUM(#REF!,#REF!,#REF!,#REF!,#REF!,#REF!)) -> 
M48: =IF($D48="","",SUM(#REF!,#REF!,#REF!,#REF!,#REF!,#REF!)) -> 
M49: =IF($D49="","",SUM(#REF!,#REF!,#REF!,#REF!,#REF!,#REF!)) -> 
M50: =IF($D50="","",SUM(#REF!,#REF!,#REF!,#REF!,#REF!,#REF!)) -> 
M51: =IF($D51="","",SUM(#REF!,#REF!,#REF!,#REF!,#REF!,#REF!)) -> 
M52: =IF($D52="","",SUM(#REF!,#REF!,#REF!,#REF!,#REF!,#REF!)) -> 
M53: =IF($D53="","",SUM(#REF!,#REF!,#REF!,#REF!,#REF!,#REF!)) -> 
M54: =IF($D54="","",SUM(#REF!,#REF!,#REF!,#REF!,#REF!,#REF!)) -> 
M55: =IF($D55="","",SUM(#REF!,#REF!,#REF!,#REF!,#REF!,#REF!)) -> 
M56: =IF($D56="","",SUM(#REF!,#REF!,#REF!,#REF!,#REF!,#REF!)) -> 
M57: =IF($D57="","",SUM(#REF!,#REF!,#REF!,#REF!,#REF!,#REF!)) -> 
M58: =IF($D58="","",SUM(#REF!,#REF!,#REF!,#REF!,#REF!,#REF!)) -> 
M59: =IF($D59="","",SUM(#REF!,#REF!,#REF!,#REF!,#REF!,#REF!)) -> 
M60: =IF($D60="","",SUM(#REF!,#REF!,#REF!,#REF!,#REF!,#REF!)) -> 
M61: =IF($D61="","",SUM(#REF!,#REF!,#REF!,#REF!,#REF!,#REF!)) -> 
M62: =IF($D62="","",SUM(#REF!,#REF!,#REF!,#REF!,#REF!,#REF!)) -> 
M63: =IF($D63="","",SUM(#REF!,#REF!,#REF!,#REF!,#REF!,#REF!)) -> 
M64: =IF($D64="","",SUM(#REF!,#REF!,#REF!,#REF!,#REF!,#REF!)) -> 
M65: =IF($D65="","",SUM(#REF!,#REF!,#REF!,#REF!,#REF!,#REF!)) -> 
M66: =IF($D66="","",SUM(#REF!,#REF!,#REF!,#REF!,#REF!,#REF!)) -> 
M67: =IF($D67="","",SUM(#REF!,#REF!,#REF!,#REF!,#REF!,#REF!)) -> 
M68: =IF($D68="","",SUM(#REF!,#REF!,#REF!,#REF!,#REF!,#REF!)) -> 
M69: =IF($D69="","",SUM(#REF!,#REF!,#REF!,#REF!,#REF!,#REF!)) -> 
M70: =IF($D70="","",SUM(#REF!,#REF!,#REF!,#REF!,#REF!,#REF!)) -> 
M71: =IF($D71="","",SUM(#REF!,#REF!,#REF!,#REF!,#REF!,#REF!)) -> 
M72: =IF($D72="","",SUM(#REF!,#REF!,#REF!,#REF!,#REF!,#REF!)) -> 
M73: =IF($D73="","",SUM(#REF!,#REF!,#REF!,#REF!,#REF!,#REF!)) -> 
M74: =IF($D74="","",SUM(#REF!,#REF!,#REF!,#REF!,#REF!,#REF!)) -> 
M75: =IF($D75="","",SUM(#REF!,#REF!,#REF!,#REF!,#REF!,#REF!)) -> 
M76: =IF($D76="","",SUM(#REF!,#REF!,#REF!,#REF!,#REF!,#REF!)) -> 
M77: =IF($D77="","",SUM(#REF!,#REF!,#REF!,#REF!,#REF!,#REF!)) -> 
M78: =IF($D78="","",SUM(#REF!,#REF!,#REF!,#REF!,#REF!,#REF!)) -> 
M79: =IF($D79="","",SUM(#REF!,#REF!,#REF!,#REF!,#REF!,#REF!)) -> 
M80: =IF($D80="","",SUM(#REF!,#REF!,#REF!,#REF!,#REF!,#REF!)) -> 
M81: =IF($D81="","",SUM(#REF!,#REF!,#REF!,#REF!,#REF!,#REF!)) -> 
M82: =IF($D82="","",SUM(#REF!,#REF!,#REF!,#REF!,#REF!,#REF!)) -> 
M83: =IF($D83="","",SUM(#REF!,#REF!,#REF!,#REF!,#REF!,#REF!)) -> 
M84: =IF($D84="","",SUM(#REF!,#REF!,#REF!,#REF!,#REF!,#REF!)) -> 
M85: =IF($D85="","",SUM(#REF!,#REF!,#REF!,#REF!,#REF!,#REF!)) -> 
M86: =IF($D86="","",SUM(#REF!,#REF!,#REF!,#REF!,#REF!,#REF!)) -> 
L87: =IF($D87="","",SUM(F87,G87,H87,I87,J87,K87)) ->  | M87: =IF($D87="","",SUM(#REF!,#REF!,#REF!,#REF!,#REF!,#REF!)) -> 
M88: =IF($D88="","",SUM(#REF!,#REF!,#REF!,#REF!,#REF!,#REF!)) -> 
M89: =IF($D89="","",SUM(#REF!,#REF!,#REF!,#REF!,#REF!,#REF!)) -> 
M90: =IF($D90="","",SUM(#REF!,#REF!,#REF!,#REF!,#REF!,#REF!)) -> 
M91: =IF($D91="","",SUM(#REF!,#REF!,#REF!,#REF!,#REF!,#REF!)) -> 
M92: =IF($D92="","",SUM(#REF!,#REF!,#REF!,#REF!,#REF!,#REF!)) -> 
M93: =IF($D93="","",SUM(#REF!,#REF!,#REF!,#REF!,#REF!,#REF!)) -> 
M94: =IF($D94="","",SUM(#REF!,#REF!,#REF!,#REF!,#REF!,#REF!)) -> 
M95: =IF($D95="","",SUM(#REF!,#REF!,#REF!,#REF!,#REF!,#REF!)) -> 
M96: =IF($D96="","",SUM(#REF!,#REF!,#REF!,#REF!,#REF!,#REF!)) -> 
M97: =IF($D97="","",SUM(#REF!,#REF!,#REF!,#REF!,#REF!,#REF!)) -> 
M98: =IF($D98="","",SUM(#REF!,#REF!,#REF!,#REF!,#REF!,#REF!)) -> 
M99: =IF($D99="","",SUM(#REF!,#REF!,#REF!,#REF!,#REF!,#REF!)) -> 
M100: =IF($D100="","",SUM(#REF!,#REF!,#REF!,#REF!,#REF!,#REF!)) -> 
M101: =IF($D101="","",SUM(#REF!,#REF!,#REF!,#REF!,#REF!,#REF!)) -> 
M102: =IF($D102="","",SUM(#REF!,#REF!,#REF!,#REF!,#REF!,#REF!)) -> 
M103: =IF($D103="","",SUM(#REF!,#REF!,#REF!,#REF!,#REF!,#REF!)) -> 
M104: =IF($D104="","",SUM(#REF!,#REF!,#REF!,#REF!,#REF!,#REF!)) -> 
M105: =IF($D105="","",SUM(#REF!,#REF!,#REF!,#REF!,#REF!,#REF!)) -> 
M106: =IF($D106="","",SUM(#REF!,#REF!,#REF!,#REF!,#REF!,#REF!)) -> 
M107: =IF($D107="","",SUM(#REF!,#REF!,#REF!,#REF!,#REF!,#REF!)) -> 
M108: =IF($D108="","",SUM(#REF!,#REF!,#REF!,#REF!,#REF!,#REF!)) -> 
M109: =IF($D109="","",SUM(#REF!,#REF!,#REF!,#REF!,#REF!,#REF!)) -> 
M110: =IF($D110="","",SUM(#REF!,#REF!,#REF!,#REF!,#REF!,#REF!)) -> 
M111: =IF($D111="","",SUM(#REF!,#REF!,#REF!,#REF!,#REF!,#REF!)) -> 
M112: =IF($D112="","",SUM(#REF!,#REF!,#REF!,#REF!,#REF!,#REF!)) -> 
M113: =IF($D113="","",SUM(#REF!,#REF!,#REF!,#REF!,#REF!,#REF!)) -> 
M114: =IF($D114="","",SUM(#REF!,#REF!,#REF!,#REF!,#REF!,#REF!)) -> 
M115: =IF($D115="","",SUM(#REF!,#REF!,#REF!,#REF!,#REF!,#REF!)) -> 
M116: =IF($D116="","",SUM(#REF!,#REF!,#REF!,#REF!,#REF!,#REF!)) -> 
M117: =IF($D117="","",SUM(#REF!,#REF!,#REF!,#REF!,#REF!,#REF!)) -> 
M118: =IF($D118="","",SUM(#REF!,#REF!,#REF!,#REF!,#REF!,#REF!)) -> 
M119: =IF($D119="","",SUM(#REF!,#REF!,#REF!,#REF!,#REF!,#REF!)) -> 
M120: =IF($D120="","",SUM(#REF!,#REF!,#REF!,#REF!,#REF!,#REF!)) -> 
M121: =IF($D121="","",SUM(#REF!,#REF!,#REF!,#REF!,#REF!,#REF!)) -> 
M122: =IF($D122="","",SUM(#REF!,#REF!,#REF!,#REF!,#REF!,#REF!)) -> 
M123: =IF($D123="","",SUM(#REF!,#REF!,#REF!,#REF!,#REF!,#REF!)) -> 
M124: =IF($D124="","",SUM(#REF!,#REF!,#REF!,#REF!,#REF!,#REF!)) -> 
M125: =IF($D125="","",SUM(#REF!,#REF!,#REF!,#REF!,#REF!,#REF!)) -> 
M126: =IF($D126="","",SUM(#REF!,#REF!,#REF!,#REF!,#REF!,#REF!)) -> 
M127: =IF($D127="","",SUM(#REF!,#REF!,#REF!,#REF!,#REF!,#REF!)) -> 
M128: =IF($D128="","",SUM(#REF!,#REF!,#REF!,#REF!,#REF!,#REF!)) -> 
M129: =IF($D129="","",SUM(#REF!,#REF!,#REF!,#REF!,#REF!,#REF!)) -> 
M130: =IF($D130="","",SUM(#REF!,#REF!,#REF!,#REF!,#REF!,#REF!)) -> 
M131: =IF($D131="","",SUM(#REF!,#REF!,#REF!,#REF!,#REF!,#REF!)) -> 
M132: =IF($D132="","",SUM(#REF!,#REF!,#REF!,#REF!,#REF!,#REF!)) -> 
M133: =IF($D133="","",SUM(#REF!,#REF!,#REF!,#REF!,#REF!,#REF!)) -> 
M134: =IF($D134="","",SUM(#REF!,#REF!,#REF!,#REF!,#REF!,#REF!)) -> 
M135: =IF($D135="","",SUM(#REF!,#REF!,#REF!,#REF!,#REF!,#REF!)) -> 
M136: =IF($D136="","",SUM(#REF!,#REF!,#REF!,#REF!,#REF!,#REF!)) -> 
M137: =IF($D137="","",SUM(#REF!,#REF!,#REF!,#REF!,#REF!,#REF!)) -> 
M138: =IF($D138="","",SUM(#REF!,#REF!,#REF!,#REF!,#REF!,#REF!)) -> 
M139: =IF($D139="","",SUM(#REF!,#REF!,#REF!,#REF!,#REF!,#REF!)) -> 
M140: =IF($D140="","",SUM(#REF!,#REF!,#REF!,#REF!,#REF!,#REF!)) -> 
M141: =IF($D141="","",SUM(#REF!,#REF!,#REF!,#REF!,#REF!,#REF!)) -> 
M142: =IF($D142="","",SUM(#REF!,#REF!,#REF!,#REF!,#REF!,#REF!)) -> 
M143: =IF($D143="","",SUM(#REF!,#REF!,#REF!,#REF!,#REF!,#REF!)) -> 
M144: =IF($D144="","",SUM(#REF!,#REF!,#REF!,#REF!,#REF!,#REF!)) -> 
M145: =IF($D145="","",SUM(#REF!,#REF!,#REF!,#REF!,#REF!,#REF!)) -> 
M146: =IF($D146="","",SUM(#REF!,#REF!,#REF!,#REF!,#REF!,#REF!)) -> 
M147: =IF($D147="","",SUM(#REF!,#REF!,#REF!,#REF!,#REF!,#REF!)) -> 
M148: =IF($D148="","",SUM(#REF!,#REF!,#REF!,#REF!,#REF!,#REF!)) -> 
M149: =IF($D149="","",SUM(#REF!,#REF!,#REF!,#REF!,#REF!,#REF!)) -> 
M150: =IF($D150="","",SUM(#REF!,#REF!,#REF!,#REF!,#REF!,#REF!)) -> 
L151: =IF($D151="","",SUM(F151,G151,H151,I151,J151,K151)) ->  | M151: =IF($D151="","",SUM(#REF!,#REF!,#REF!,#REF!,#REF!,#REF!)) -> 
M152: =IF($D152="","",SUM(#REF!,#REF!,#REF!,#REF!,#REF!,#REF!)) -> 
M153: =IF($D153="","",SUM(#REF!,#REF!,#REF!,#REF!,#REF!,#REF!)) -> 
M154: =IF($D154="","",SUM(#REF!,#REF!,#REF!,#REF!,#REF!,#REF!)) -> 
M155: =IF($D155="","",SUM(#REF!,#REF!,#REF!,#REF!,#REF!,#REF!)) -> 
M156: =IF($D156="","",SUM(#REF!,#REF!,#REF!,#REF!,#REF!,#REF!)) -> 
M157: =IF($D157="","",SUM(#REF!,#REF!,#REF!,#REF!,#REF!,#REF!)) -> 
M158: =IF($D158="","",SUM(#REF!,#REF!,#REF!,#REF!,#REF!,#REF!)) -> 
M159: =IF($D159="","",SUM(#REF!,#REF!,#REF!,#REF!,#REF!,#REF!)) -> 
M160: =IF($D160="","",SUM(#REF!,#REF!,#REF!,#REF!,#REF!,#REF!)) -> 
M161: =IF($D161="","",SUM(#REF!,#REF!,#REF!,#REF!,#REF!,#REF!)) -> 
M162: =IF($D162="","",SUM(#REF!,#REF!,#REF!,#REF!,#REF!,#REF!)) -> 
M163: =IF($D163="","",SUM(#REF!,#REF!,#REF!,#REF!,#REF!,#REF!)) -> 
M164: =IF($D164="","",SUM(#REF!,#REF!,#REF!,#REF!,#REF!,#REF!)) -> 
M165: =IF($D165="","",SUM(#REF!,#REF!,#REF!,#REF!,#REF!,#REF!)) -> 
M166: =IF($D166="","",SUM(#REF!,#REF!,#REF!,#REF!,#REF!,#REF!)) -> 
M167: =IF($D167="","",SUM(#REF!,#REF!,#REF!,#REF!,#REF!,#REF!)) -> 
M168: =IF($D168="","",SUM(#REF!,#REF!,#REF!,#REF!,#REF!,#REF!)) -> 
M169: =IF($D169="","",SUM(#REF!,#REF!,#REF!,#REF!,#REF!,#REF!)) -> 
M170: =IF($D170="","",SUM(#REF!,#REF!,#REF!,#REF!,#REF!,#REF!)) -> 
M171: =IF($D171="","",SUM(#REF!,#REF!,#REF!,#REF!,#REF!,#REF!)) -> 
M172: =IF($D172="","",SUM(#REF!,#REF!,#REF!,#REF!,#REF!,#REF!)) -> 
M173: =IF($D173="","",SUM(#REF!,#REF!,#REF!,#REF!,#REF!,#REF!)) -> 
M174: =IF($D174="","",SUM(#REF!,#REF!,#REF!,#REF!,#REF!,#REF!)) -> 
M175: =IF($D175="","",SUM(#REF!,#REF!,#REF!,#REF!,#REF!,#REF!)) -> 
M176: =IF($D176="","",SUM(#REF!,#REF!,#REF!,#REF!,#REF!,#REF!)) -> 
M177: =IF($D177="","",SUM(#REF!,#REF!,#REF!,#REF!,#REF!,#REF!)) -> 
M178: =IF($D178="","",SUM(#REF!,#REF!,#REF!,#REF!,#REF!,#REF!)) -> 
M179: =IF($D179="","",SUM(#REF!,#REF!,#REF!,#REF!,#REF!,#REF!)) -> 
M180: =IF($D180="","",SUM(#REF!,#REF!,#REF!,#REF!,#REF!,#REF!)) -> 
M181: =IF($D181="","",SUM(#REF!,#REF!,#REF!,#REF!,#REF!,#REF!)) -> 
M182: =IF($D182="","",SUM(#REF!,#REF!,#REF!,#REF!,#REF!,#REF!)) -> 
M183: =IF($D183="","",SUM(#REF!,#REF!,#REF!,#REF!,#REF!,#REF!)) -> 
M184: =IF($D184="","",SUM(#REF!,#REF!,#REF!,#REF!,#REF!,#REF!)) -> 
M185: =IF($D185="","",SUM(#REF!,#REF!,#REF!,#REF!,#REF!,#REF!)) -> 
M186: =IF($D186="","",SUM(#REF!,#REF!,#REF!,#REF!,#REF!,#REF!)) -> 
M187: =IF($D187="","",SUM(#REF!,#REF!,#REF!,#REF!,#REF!,#REF!)) -> 
M188: =IF($D188="","",SUM(#REF!,#REF!,#REF!,#REF!,#REF!,#REF!)) -> 
M189: =IF($D189="","",SUM(#REF!,#REF!,#REF!,#REF!,#REF!,#REF!)) -> 
M190: =IF($D190="","",SUM(#REF!,#REF!,#REF!,#REF!,#REF!,#REF!)) -> 
M191: =IF($D191="","",SUM(#REF!,#REF!,#REF!,#REF!,#REF!,#REF!)) -> 
M192: =IF($D192="","",SUM(#REF!,#REF!,#REF!,#REF!,#REF!,#REF!)) -> 
M193: =IF($D193="","",SUM(#REF!,#REF!,#REF!,#REF!,#REF!,#REF!)) -> 
M194: =IF($D194="","",SUM(#REF!,#REF!,#REF!,#REF!,#REF!,#REF!)) -> 
M195: =IF($D195="","",SUM(#REF!,#REF!,#REF!,#REF!,#REF!,#REF!)) -> 
M196: =IF($D196="","",SUM(#REF!,#REF!,#REF!,#REF!,#REF!,#REF!)) -> 
M197: =IF($D197="","",SUM(#REF!,#REF!,#REF!,#REF!,#REF!,#REF!)) -> 
M198: =IF($D198="","",SUM(#REF!,#REF!,#REF!,#REF!,#REF!,#REF!)) -> 
M199: =IF($D199="","",SUM(#REF!,#REF!,#REF!,#REF!,#REF!,#REF!)) -> 
M200: =IF($D200="","",SUM(#REF!,#REF!,#REF!,#REF!,#REF!,#REF!)) -> 
... 75 more rows

Sheet 10mDPS40MW 入力発表
A1: 順位 | B1: 射群 | C1: 射座 | D1: 名 前 | E1: 学校名 | F1: S１ | G1: S２ | H1: S３ | I1: S４ | J1: 合 計 | K1: 備考
A2: 1 | B2: a | C2: 2 | D2: 田上 諒 | E2: 京都産業大学 | F2: 95 | G2: 88 | H2: 88 | I2: 89 | J2: 360
A3: 2 | B3: f | C3: 4 | D3: 待場 直宏 | E3: 関西学院大学 | F3: 89 | G3: 84 | H3: 88 | I3: 85 | J3: 346
A4: 3 | B4: a | C4: 4 | D4: 海老名 春興 | E4: 同志社大学 | F4: 89 | G4: 90 | H4: 84 | I4: 83 | J4: 346
A5: 4 | B5: g | C5: 3 | D5: 鈴木 健元 | E5: 大阪大学 | F5: 84 | G5: 84 | H5: 84 | I5: 83 | J5: 335
A6: 5 | B6: f | C6: 9 | D6: 林 悠之介 | E6: 甲南大学 | F6: 82 | G6: 88 | H6: 83 | I6: 81 | J6: 334
A7: 6 | B7: a | C7: 8 | D7: 前田 慧 | E7: 近畿大学 | F7: 85 | G7: 76 | H7: 88 | I7: 81 | J7: 330
A8: 7 | B8: c | C8: 9 | D8: 田井 完樹 | E8: 甲南大学 | F8: 75 | G8: 75 | H8: 88 | I8: 86 | J8: 324
A9: 8 | B9: b | C9: 6 | D9: 高原 康輝 | E9: 京都産業大学 | F9: 82 | G9: 79 | H9: 81 | I9: 80 | J9: 322
A10: 9 | B10: c | C10: 3 | D10: 熊野 直輝 | E10: 大阪産業大学 | F10: 80 | G10: 69 | H10: 85 | I10: 86 | J10: 320
A11: 10 | B11: c | C11: 4 | D11: 山村 祥真 | E11: 関西学院大学 | F11: 84 | G11: 75 | H11: 74 | I11: 82 | J11: 315
A12: 11 | B12: d | C12: 2 | D12: 西村 友孝 | E12: 京都産業大学 | F12: 81 | G12: 85 | H12: 73 | I12: 76 | J12: 315
A13: 12 | B13: e | C13: 8 | D13: 門池 優成 | E13: 大阪産業大学 | F13: 71 | G13: 73 | H13: 91 | I13: 77 | J13: 312
A14: 13 | B14: a | C14: 5 | D14: 山田 裕貴 | E14: 甲南大学 | F14: 75 | G14: 83 | H14: 72 | I14: 77 | J14: 307
A15: 14 | B15: c | C15: 6 | D15: 大月 淳寛 | E15: 京都産業大学 | F15: 74 | G15: 74 | H15: 68 | I15: 86 | J15: 302
A16: 15 | B16: g | C16: 5 | D16: 福田 朗史 | E16: 甲南大学 | F16: 72 | G16: 76 | H16: 78 | I16: 75 | J16: 301
A17: 16 | B17: f | C17: 8 | D17: 上山 夏樹 | E17: 近畿大学 | F17: 76 | G17: 75 | H17: 78 | I17: 71 | J17: 300
A18: 17 | B18: e | C18: 4 | D18: 家高 郁子 | E18: 同志社大学 | F18: 71 | G18: 70 | H18: 85 | I18: 73 | J18: 299
A19: 18 | B19: b | C19: 4 | D19: 井口 青紀 | E19: 関西学院大学 | F19: 83 | G19: 68 | H19: 67 | I19: 80 | J19: 298
A20: 19 | B20: d | C20: 6 | D20: 辻田 康平 | E20: 大阪大学 | F20: 73 | G20: 80 | H20: 71 | I20: 73 | J20: 297
A21: 20 | B21: c | C21: 8 | D21: 今村 政宏 | E21: 近畿大学 | F21: 78 | G21: 71 | H21: 81 | I21: 58 | J21: 288
A22: 21 | B22: d | C22: 5 | D22: 藤井 瑛子 | E22: 京都大学 | F22: 69 | G22: 70 | H22: 75 | I22: 72 | J22: 286
A23: 22 | B23: e | C23: 10 | D23: 奥村 哲弘 | E23: 立命館大学 | F23: 77 | G23: 68 | H23: 70 | I23: 66 | J23: 281
A24: 23 | B24: g | C24: 2 | D24: 植本 有子 | E24: 京都産業大学 | F24: 73 | G24: 65 | H24: 63 | I24: 74 | J24: 275
A25: 24 | B25: d | C25: 7 | D25: 有元 公平 | E25: 近畿大学 | F25: 76 | G25: 74 | H25: 57 | I25: 68 | J25: 275
A26: 25 | B26: e | C26: 9 | D26: 倉地 友紀子 | E26: 甲南大学 | F26: 78 | G26: 70 | H26: 64 | I26: 58 | J26: 270
A27: 26 | B27: d | C27: 8 | D27: 三原 秀一 | E27: 甲南大学 | F27: 73 | G27: 64 | H27: 62 | I27: 69 | J27: 268
A28: 27 | B28: g | C28: 6 | D28: 山口 友紀 | E28: 京都産業大学 | F28: 61 | G28: 69 | H28: 69 | I28: 68 | J28: 267
A29: 28 | B29: c | C29: 7 | D29: 吉岡 凛太郎 | E29: 大阪大学 | F29: 70 | G29: 63 | H29: 67 | I29: 67 | J29: 267
A30: 29 | B30: f | C30: 6 | D30: 荒木 未希 | E30: 京都産業大学 | F30: 71 | G30: 68 | H30: 67 | I30: 60 | J30: 266
A31: 30 | B31: b | C31: 2 | D31: 鳥越 岳 | E31: 京都産業大学 | F31: 67 | G31: 69 | H31: 56 | I31: 73 | J31: 265
A32: 31 | B32: a | C32: 7 | D32: 森重 貴司 | E32: 大阪大学 | F32: 59 | G32: 55 | H32: 73 | I32: 72 | J32: 259
A33: 32 | B33: c | C33: 2 | D33: 平井 伶衣良 | E33: 京都産業大学 | F33: 66 | G33: 64 | H33: 62 | I33: 67 | J33: 259
A34: 33 | B34: d | C34: 4 | D34: 伊藤 良平 | E34: 関西学院大学 | F34: 62 | G34: 68 | H34: 63 | I34: 59 | J34: 252
A35: 34 | B35: g | C35: 8 | D35: 井藤 雅仁 | E35: 近畿大学 | F35: 68 | G35: 70 | H35: 53 | I35: 59 | J35: 250
A36: 35 | B36: e | C36: 3 | D36: 井口 恵梨華 | E36: 大阪大学 | F36: 64 | G36: 68 | H36: 66 | I36: 52 | J36: 250
A37: 36 | B37: c | C37: 5 | D37: 北田 諒平 | E37: 京都大学 | F37: 64 | G37: 62 | H37: 53 | I37: 70 | J37: 249
A38: 37 | B38: f | C38: 5 | D38: 濱本 穂高 | E38: 京都大学 | F38: 57 | G38: 56 | H38: 70 | I38: 66 | J38: 249
A39: 38 | B39: g | C39: 11 | D39: 西行 優子 | E39: 京都大学 | F39: 63 | G39: 54 | H39: 62 | I39: 64 | J39: 243
A40: 39 | B40: a | C40: 6 | D40: 生島 修 | E40: 京都産業大学 | F40: 59 | G40: 67 | H40: 72 | I40: 44 | J40: 242
A41: 40 | B41: e | C41: 7 | D41: 渡邊 光太郎 | E41: 大阪大学 | F41: 55 | G41: 61 | H41: 64 | I41: 61 | J41: 241
A42: 41 | B42: e | C42: 6 | D42: 外村 昌大 | E42: 京都産業大学 | F42: 69 | G42: 55 | H42: 53 | I42: 62 | J42: 239
A43: 42 | B43: e | C43: 2 | D43: 高橋 尚三 | E43: 京都産業大学 | F43: 58 | G43: 60 | H43: 67 | I43: 54 | J43: 239
A44: 43 | B44: g | C44: 4 | D44: 織野 友嘉 | E44: 関西学院大学 | F44: 58 | G44: 64 | H44: 69 | I44: 48 | J44: 239
A45: 44 | B45: f | C45: 2 | D45: 吉本 菜月美 | E45: 京都産業大学 | F45: 59 | G45: 65 | H45: 61 | I45: 53 | J45: 238
A46: 45 | B46: f | C46: 7 | D46: 陳 博順 | E46: 大阪大学 | F46: 55 | G46: 63 | H46: 41 | I46: 64 | J46: 223
A47: 46 | B47: a | C47: 3 | D47: 西尾 将 | E47: 大阪産業大学 | F47: 55 | G47: 46 | H47: 54 | I47: 61 | J47: 216
A48: 47 | B48: e | C48: 5 | D48: 冨田 悠 | E48: 京都大学 | F48: 57 | G48: 51 | H48: 51 | I48: 49 | J48: 208
A49: 48 | B49: b | C49: 8 | D49: 有元 太一 | E49: 近畿大学 | F49: 53 | G49: 71 | H49: 28 | I49: 47 | J49: 199
A50: 49 | B50: a | C50: 11 | D50: 宮田 佳奈子 | E50: 京都大学 | F50: 45 | G50: 51 | H50: 27 | I50: 47 | J50: 170
A51: 50 | B51: d | C51: 3 | D51: 中原 雅樹 | E51: 大阪産業大学 | F51: 49 | G51: 39 | H51: 50 | I51: 23 | J51: 161
A52: 51 | B52: b | C52: 7 | D52: 高原 雄太 | E52: 大阪大学 | F52: 46 | G52: 32 | H52: 46 | I52: 33 | J52: 157
A53: 52 | B53: f | C53: 3 | D53: 中川 祐介 | E53: 大阪大学 | F53: 43 | G53: 30 | H53: 44 | I53: 36 | J53: 153
A54: 53 | B54: b | C54: 5 | D54: 岸田 浩平 | E54: 甲南大学 | F54: 0 | G54: 0 | H54: 0 | I54: 0 | J54: 0
A55: 53 | B55: g | C55: 7 | D55: 東 賢明 | E55: 大阪大学 | F55: 0 | G55: 0 | H55: 0 | I55: 0 | J55: 0 | K55: D.N.S
J56: =IF($D56="","",SUM(F56:I56)) -> 
J66: =IF($D66="","",SUM(F66:I66)) -> 
J130: =IF($D130="","",SUM(F130:I130)) -> 
J194: =IF($D194="","",SUM(F194:I194)) -> 

Sheet 10mP60MW 入力発表
A1: 順位 | B1: 射群 | C1: 射座 | D1: 名 前 | E1: 学校名 | F1: P1 | G1: P2 | H1: P3 | I1: P4 | J1: P5 | K1: P6 | L1: 合 計 | M1: X | N1: 備考
A2: 1 | B2: β | C2: 9 | D2: 西田 寛 | E2: 甲南大学 | F2: 105.6 | G2: 103.9 | H2: 103.3 | I2: 104.2 | J2: 103.7 | K2: 104.6 | L2: 625.3 | M2: 47
A3: 2 | B3: β | C3: 16 | D3: 大友 健郎 | E3: 京都大学 | F3: 103.3 | G3: 104.3 | H3: 104.1 | I3: 104.2 | J3: 103.2 | K3: 103.5 | L3: 622.6 | M3: 48
A4: 3 | B4: α | C4: 19 | D4: 森 雪彦 | E4: 関西大学 | F4: 101.9 | G4: 103.8 | H4: 103.4 | I4: 105 | J4: 104.3 | K4: 103.4 | L4: 621.8 | M4: 47 | N4: X=47
A5: 4 | B5: β | C5: 4 | D5: 藤本 花音 | E5: 京都大学 | F5: 103.9 | G5: 100.4 | H5: 103.3 | I5: 105.9 | J5: 104 | K5: 104.3 | L5: 621.8 | M5: 45 | N5: X=45
A6: 5 | B6: α | C6: 3 | D6: 菅原 康之 | E6: 京都大学 | F6: 103.2 | G6: 103.3 | H6: 103 | I6: 104.9 | J6: 103.5 | K6: 102.3 | L6: 620.2 | M6: 40
A7: 6 | B7: α | C7: 26 | D7: 中田 大介 | E7: 京都大学 | F7: 103.6 | G7: 105.2 | H7: 102.5 | I7: 102.4 | J7: 100.8 | K7: 104.3 | L7: 618.8 | M7: 39
A8: 7 | B8: α | C8: 8 | D8: 石川 大地 | E8: 関西学院大学 | F8: 103.9 | G8: 101.2 | H8: 103.4 | I8: 102.8 | J8: 102.1 | K8: 104.2 | L8: 617.6 | M8: 38
A9: 8 | B9: β | C9: 10 | D9: 青山 綾希 | E9: 京都大学 | F9: 102.7 | G9: 101.5 | H9: 103.1 | I9: 103.2 | J9: 103.3 | K9: 103 | L9: 616.8 | M9: 41
A10: 9 | B10: α | C10: 25 | D10: 松田 真吾 | E10: 京都産業大学 | F10: 102.5 | G10: 103.1 | H10: 103 | I10: 102.4 | J10: 101.4 | K10: 103.9 | L10: 616.3 | M10: 39
A11: 10 | B11: β | C11: 29 | D11: 村上 桃子 | E11: 京都大学 | F11: 103.6 | G11: 103.3 | H11: 102.2 | I11: 98.4 | J11: 101.7 | K11: 106.1 | L11: 615.3 | M11: 36
A12: 11 | B12: α | C12: 12 | D12: 大谷 秀 | E12: 甲南大学 | F12: 101.1 | G12: 103.5 | H12: 102.8 | I12: 99.9 | J12: 103.3 | K12: 103.7 | L12: 614.3 | M12: 37
A13: 12 | B13: β | C13: 22 | D13: 景山 拓朗 | E13: 関西学院大学 | F13: 100.7 | G13: 102.1 | H13: 100.1 | I13: 101.3 | J13: 105 | K13: 103.4 | L13: 612.6 | M13: 34
A14: 13 | B14: β | C14: 26 | D14: 福田 哲史 | E14: 京都大学 | F14: 101.8 | G14: 99.5 | H14: 101.8 | I14: 103.4 | J14: 101.9 | K14: 102.3 | L14: 610.7 | M14: 39
A15: 14 | B15: β | C15: 19 | D15: 徳廣 愛 | E15: 関西大学 | F15: 102.7 | G15: 92.5 | H15: 103.7 | I15: 105.5 | J15: 101.8 | K15: 103.5 | L15: 609.7 | M15: 42
A16: 15 | B16: β | C16: 30 | D16: 奥村 哲弘 | E16: 立命館大学 | F16: 101.1 | G16: 104.8 | H16: 103.5 | I16: 93.6 | J16: 101.5 | K16: 104.3 | L16: 608.8 | M16: 40
A17: 16 | B17: β | C17: 13 | D17: 大澤 貴弘 | E17: 京都大学 | F17: 104.2 | G17: 101.1 | H17: 101.8 | I17: 98.1 | J17: 102.2 | K17: 101.1 | L17: 608.5 | M17: 29
A18: 17 | B18: β | C18: 8 | D18: 日野 祐允 | E18: 関西学院大学 | F18: 100.5 | G18: 100.4 | H18: 100.8 | I18: 101.9 | J18: 100.8 | K18: 102.3 | L18: 606.7 | M18: 29
A19: 18 | B19: β | C19: 14 | D19: 西田 康祐 | E19: 近畿大学 | F19: 90.8 | G19: 103.2 | H19: 102.1 | I19: 104.9 | J19: 104.6 | K19: 100.9 | L19: 606.5 | M19: 40
A20: 19 | B20: β | C20: 7 | D20: 村田 彩貴 | E20: 京都大学 | F20: 100.8 | G20: 100.9 | H20: 102.4 | I20: 99.7 | J20: 101.9 | K20: 100.7 | L20: 606.4 | M20: 31
A21: 20 | B21: α | C21: 15 | D21: 川崎 麻衣 | E21: 甲南大学 | F21: 102.7 | G21: 102.9 | H21: 99 | I21: 99.9 | J21: 100.6 | K21: 100 | L21: 605.1 | M21: 25
A22: 21 | B22: β | C22: 27 | D22: 高見 裕紀 | E22: 甲南大学 | F22: 102.6 | G22: 100.1 | H22: 101.3 | I22: 102.2 | J22: 98.8 | K22: 99.9 | L22: 604.9 | M22: 32
A23: 22 | B23: β | C23: 6 | D23: 小林 舜典 | E23: 大阪大学 | F23: 99.2 | G23: 99.7 | H23: 99.9 | I23: 101.3 | J23: 102.4 | K23: 100.1 | L23: 602.6 | M23: 29
A24: 23 | B24: β | C24: 25 | D24: 加茂 克基 | E24: 京都産業大学 | F24: 101.6 | G24: 101.2 | H24: 100.7 | I24: 96.5 | J24: 102 | K24: 100.1 | L24: 602.1 | M24: 27
A25: 24 | B25: β | C25: 21 | D25: 高橋 孝介 | E25: 甲南大学 | F25: 100.4 | G25: 99.8 | H25: 99 | I25: 98.5 | J25: 100.4 | K25: 102.4 | L25: 600.5 | M25: 27
A26: 25 | B26: β | C26: 28 | D26: 前田 慧 | E26: 近畿大学 | F26: 100 | G26: 98.8 | H26: 99.6 | I26: 100.2 | J26: 101.4 | K26: 99.9 | L26: 599.9 | M26: 24
A27: 26 | B27: α | C27: 4 | D27: 長尾 侑馬 | E27: 近畿大学 | F27: 101.2 | G27: 101.7 | H27: 100.3 | I27: 95.8 | J27: 97.9 | K27: 100.2 | L27: 597.1 | M27: 23
A28: 27 | B28: α | C28: 9 | D28: 小笠原 慎一朗 | E28: 甲南大学 | F28: 99.9 | G28: 98.3 | H28: 102 | I28: 96.2 | J28: 98.9 | K28: 101.2 | L28: 596.5 | M28: 21
A29: 28 | B29: α | C29: 21 | D29: 大西 杏奈 | E29: 甲南大学 | F29: 99.1 | G29: 100 | H29: 101.6 | I29: 97.6 | J29: 98.8 | K29: 98.9 | L29: 596 | M29: 23
A30: 29 | B30: β | C30: 18 | D30: 副島 隆志 | E30: 甲南大学 | F30: 97.6 | G30: 96.3 | H30: 97.4 | I30: 102.3 | J30: 101.4 | K30: 100.9 | L30: 595.9 | M30: 21
A31: 30 | B31: α | C31: 24 | D31: 山本 佳奈 | E31: 甲南大学 | F31: 95 | G31: 100.6 | H31: 101.7 | I31: 99 | J31: 97.1 | K31: 102 | L31: 595.4 | M31: 19
A32: 31 | B32: α | C32: 7 | D32: 有本 樹 | E32: 京都大学 | F32: 97.7 | G32: 95.6 | H32: 98.5 | I32: 101 | J32: 99.4 | K32: 100 | L32: 592.2 | M32: 16
A33: 32 | B33: α | C33: 14 | D33: 藤 優輝 | E33: 近畿大学 | F33: 98.3 | G33: 92.6 | H33: 99.7 | I33: 99.2 | J33: 100.9 | K33: 99.2 | L33: 589.9 | M33: 19
A34: 33 | B34: α | C34: 18 | D34: 山田 詩日奈 | E34: 甲南女子大学 | F34: 96.3 | G34: 98.1 | H34: 94.3 | I34: 102.8 | J34: 93.1 | K34: 99.2 | L34: 583.8 | M34: 22
A35: 34 | B35: β | C35: 15 | D35: 栗岡 亮太 | E35: 甲南大学 | F35: 97.3 | G35: 100.8 | H35: 99.8 | I35: 95.1 | J35: 90.8 | K35: 97.6 | L35: 581.4 | M35: 16
A36: 35 | B36: α | C36: 10 | D36: 大林 秀行 | E36: 京都大学 | F36: 99.5 | G36: 98.7 | H36: 90.9 | I36: 94.1 | J36: 96.2 | K36: 98.3 | L36: 577.7 | M36: 16
A37: 36 | B37: α | C37: 6 | D37: 楢橋 広基 | E37: 大阪大学 | F37: 94.1 | G37: 92.9 | H37: 95.3 | I37: 97.1 | J37: 97.9 | K37: 96 | L37: 573.3 | M37: 13
A38: 37 | B38: α | C38: 16 | D38: 比舍 昌志 | E38: 京都大学 | F38: 98.6 | G38: 94.7 | H38: 97.6 | I38: 97.2 | J38: 93.4 | K38: 91.3 | L38: 572.8 | M38: 12
A39: 38 | B39: α | C39: 27 | D39: 森元 裕太 | E39: 甲南大学 | F39: 93.7 | G39: 100.2 | H39: 98.3 | I39: 96.3 | J39: 96.1 | K39: 87.4 | L39: 572 | M39: 14
A40: 39 | B40: α | C40: 13 | D40: 後藤 陸 | E40: 京都大学 | F40: 94 | G40: 92.6 | H40: 83.9 | I40: 91.5 | J40: 92.2 | K40: 93.2 | L40: 547.4 | M40: 12
A41: 40 | B41: β | C41: 12 | D41: 川村 勇太 | E41: 甲南大学 | F41: 96 | G41: 89.4 | H41: 85.4 | I41: 89.4 | J41: 90.4 | K41: 91.8 | L41: 542.4 | M41: 7
A42: 41 | B42: β | C42: 24 | D42: 秋山 優美 | E42: 甲南大学 | F42: 89.1 | G42: 85.5 | H42: 87.3 | I42: 96.4 | J42: 86.1 | K42: 92.4 | L42: 536.8 | M42: 7
A43: 42 | B43: α | C43: 20 | D43: 渡邉 武之 | E43: 京都大学 | F43: 0 | G43: 0 | H43: 0 | I43: 0 | J43: 0 | K43: 0 | L43: 0 | M43: 0 | N43: D.N.S
A44: 42 | B44: β | C44: 20 | D44: 沖元 俊樹 | E44: 京都大学 | F44: 0 | G44: 0 | H44: 0 | I44: 0 | J44: 0 | K44: 0 | L44: 0 | M44: 0 | N44: D.N.S
L45: =IF($D45="","",SUM(F45,G45,H45,I45,J45,K45)) ->  | M45: =IF($D45="","",SUM(#REF!,#REF!,#REF!,#REF!,#REF!,#REF!)) -> 
M46: =IF($D46="","",SUM(#REF!,#REF!,#REF!,#REF!,#REF!,#REF!)) -> 
M47: =IF($D47="","",SUM(#REF!,#REF!,#REF!,#REF!,#REF!,#REF!)) -> 
M48: =IF($D48="","",SUM(#REF!,#REF!,#REF!,#REF!,#REF!,#REF!)) -> 
M49: =IF($D49="","",SUM(#REF!,#REF!,#REF!,#REF!,#REF!,#REF!)) -> 
M50: =IF($D50="","",SUM(#REF!,#REF!,#REF!,#REF!,#REF!,#REF!)) -> 
M51: =IF($D51="","",SUM(#REF!,#REF!,#REF!,#REF!,#REF!,#REF!)) -> 
M52: =IF($D52="","",SUM(#REF!,#REF!,#REF!,#REF!,#REF!,#REF!)) -> 
M53: =IF($D53="","",SUM(#REF!,#REF!,#REF!,#REF!,#REF!,#REF!)) -> 
M54: =IF($D54="","",SUM(#REF!,#REF!,#REF!,#REF!,#REF!,#REF!)) -> 
M55: =IF($D55="","",SUM(#REF!,#REF!,#REF!,#REF!,#REF!,#REF!)) -> 
M56: =IF($D56="","",SUM(#REF!,#REF!,#REF!,#REF!,#REF!,#REF!)) -> 
M57: =IF($D57="","",SUM(#REF!,#REF!,#REF!,#REF!,#REF!,#REF!)) -> 
M58: =IF($D58="","",SUM(#REF!,#REF!,#REF!,#REF!,#REF!,#REF!)) -> 
M59: =IF($D59="","",SUM(#REF!,#REF!,#REF!,#REF!,#REF!,#REF!)) -> 
M60: =IF($D60="","",SUM(#REF!,#REF!,#REF!,#REF!,#REF!,#REF!)) -> 
M61: =IF($D61="","",SUM(#REF!,#REF!,#REF!,#REF!,#REF!,#REF!)) -> 
M62: =IF($D62="","",SUM(#REF!,#REF!,#REF!,#REF!,#REF!,#REF!)) -> 
M63: =IF($D63="","",SUM(#REF!,#REF!,#REF!,#REF!,#REF!,#REF!)) -> 
M64: =IF($D64="","",SUM(#REF!,#REF!,#REF!,#REF!,#REF!,#REF!)) -> 
M65: =IF($D65="","",SUM(#REF!,#REF!,#REF!,#REF!,#REF!,#REF!)) -> 
M66: =IF($D66="","",SUM(#REF!,#REF!,#REF!,#REF!,#REF!,#REF!)) -> 
M67: =IF($D67="","",SUM(#REF!,#REF!,#REF!,#REF!,#REF!,#REF!)) -> 
M68: =IF($D68="","",SUM(#REF!,#REF!,#REF!,#REF!,#REF!,#REF!)) -> 
M69: =IF($D69="","",SUM(#REF!,#REF!,#REF!,#REF!,#REF!,#REF!)) -> 
M70: =IF($D70="","",SUM(#REF!,#REF!,#REF!,#REF!,#REF!,#REF!)) -> 
M71: =IF($D71="","",SUM(#REF!,#REF!,#REF!,#REF!,#REF!,#REF!)) -> 
M72: =IF($D72="","",SUM(#REF!,#REF!,#REF!,#REF!,#REF!,#REF!)) -> 
M73: =IF($D73="","",SUM(#REF!,#REF!,#REF!,#REF!,#REF!,#REF!)) -> 
M74: =IF($D74="","",SUM(#REF!,#REF!,#REF!,#REF!,#REF!,#REF!)) -> 
M75: =IF($D75="","",SUM(#REF!,#REF!,#REF!,#REF!,#REF!,#REF!)) -> 
M76: =IF($D76="","",SUM(#REF!,#REF!,#REF!,#REF!,#REF!,#REF!)) -> 
M77: =IF($D77="","",SUM(#REF!,#REF!,#REF!,#REF!,#REF!,#REF!)) -> 
M78: =IF($D78="","",SUM(#REF!,#REF!,#REF!,#REF!,#REF!,#REF!)) -> 
M79: =IF($D79="","",SUM(#REF!,#REF!,#REF!,#REF!,#REF!,#REF!)) -> 
M80: =IF($D80="","",SUM(#REF!,#REF!,#REF!,#REF!,#REF!,#REF!)) -> 
M81: =IF($D81="","",SUM(#REF!,#REF!,#REF!,#REF!,#REF!,#REF!)) -> 
M82: =IF($D82="","",SUM(#REF!,#REF!,#REF!,#REF!,#REF!,#REF!)) -> 
M83: =IF($D83="","",SUM(#REF!,#REF!,#REF!,#REF!,#REF!,#REF!)) -> 
M84: =IF($D84="","",SUM(#REF!,#REF!,#REF!,#REF!,#REF!,#REF!)) -> 
M85: =IF($D85="","",SUM(#REF!,#REF!,#REF!,#REF!,#REF!,#REF!)) -> 
M86: =IF($D86="","",SUM(#REF!,#REF!,#REF!,#REF!,#REF!,#REF!)) -> 
M87: =IF($D87="","",SUM(#REF!,#REF!,#REF!,#REF!,#REF!,#REF!)) -> 
M88: =IF($D88="","",SUM(#REF!,#REF!,#REF!,#REF!,#REF!,#REF!)) -> 
M89: =IF($D89="","",SUM(#REF!,#REF!,#REF!,#REF!,#REF!,#REF!)) -> 
M90: =IF($D90="","",SUM(#REF!,#REF!,#REF!,#REF!,#REF!,#REF!)) -> 
M91: =IF($D91="","",SUM(#REF!,#REF!,#REF!,#REF!,#REF!,#REF!)) -> 
M92: =IF($D92="","",SUM(#REF!,#REF!,#REF!,#REF!,#REF!,#REF!)) -> 
M93: =IF($D93="","",SUM(#REF!,#REF!,#REF!,#REF!,#REF!,#REF!)) -> 
M94: =IF($D94="","",SUM(#REF!,#REF!,#REF!,#REF!,#REF!,#REF!)) -> 
M95: =IF($D95="","",SUM(#REF!,#REF!,#REF!,#REF!,#REF!,#REF!)) -> 
M96: =IF($D96="","",SUM(#REF!,#REF!,#REF!,#REF!,#REF!,#REF!)) -> 
M97: =IF($D97="","",SUM(#REF!,#REF!,#REF!,#REF!,#REF!,#REF!)) -> 
M98: =IF($D98="","",SUM(#REF!,#REF!,#REF!,#REF!,#REF!,#REF!)) -> 
M99: =IF($D99="","",SUM(#REF!,#REF!,#REF!,#REF!,#REF!,#REF!)) -> 
M100: =IF($D100="","",SUM(#REF!,#REF!,#REF!,#REF!,#REF!,#REF!)) -> 
M101: =IF($D101="","",SUM(#REF!,#REF!,#REF!,#REF!,#REF!,#REF!)) -> 
M102: =IF($D102="","",SUM(#REF!,#REF!,#REF!,#REF!,#REF!,#REF!)) -> 
M103: =IF($D103="","",SUM(#REF!,#REF!,#REF!,#REF!,#REF!,#REF!)) -> 
M104: =IF($D104="","",SUM(#REF!,#REF!,#REF!,#REF!,#REF!,#REF!)) -> 
M105: =IF($D105="","",SUM(#REF!,#REF!,#REF!,#REF!,#REF!,#REF!)) -> 
M106: =IF($D106="","",SUM(#REF!,#REF!,#REF!,#REF!,#REF!,#REF!)) -> 
M107: =IF($D107="","",SUM(#REF!,#REF!,#REF!,#REF!,#REF!,#REF!)) -> 
M108: =IF($D108="","",SUM(#REF!,#REF!,#REF!,#REF!,#REF!,#REF!)) -> 
L109: =IF($D109="","",SUM(F109,G109,H109,I109,J109,K109)) ->  | M109: =IF($D109="","",SUM(#REF!,#REF!,#REF!,#REF!,#REF!,#REF!)) -> 
M110: =IF($D110="","",SUM(#REF!,#REF!,#REF!,#REF!,#REF!,#REF!)) -> 
M111: =IF($D111="","",SUM(#REF!,#REF!,#REF!,#REF!,#REF!,#REF!)) -> 
M112: =IF($D112="","",SUM(#REF!,#REF!,#REF!,#REF!,#REF!,#REF!)) -> 
M113: =IF($D113="","",SUM(#REF!,#REF!,#REF!,#REF!,#REF!,#REF!)) -> 
M114: =IF($D114="","",SUM(#REF!,#REF!,#REF!,#REF!,#REF!,#REF!)) -> 
M115: =IF($D115="","",SUM(#REF!,#REF!,#REF!,#REF!,#REF!,#REF!)) -> 
M116: =IF($D116="","",SUM(#REF!,#REF!,#REF!,#REF!,#REF!,#REF!)) -> 
M117: =IF($D117="","",SUM(#REF!,#REF!,#REF!,#REF!,#REF!,#REF!)) -> 
M118: =IF($D118="","",SUM(#REF!,#REF!,#REF!,#REF!,#REF!,#REF!)) -> 
M119: =IF($D119="","",SUM(#REF!,#REF!,#REF!,#REF!,#REF!,#REF!)) -> 
M120: =IF($D120="","",SUM(#REF!,#REF!,#REF!,#REF!,#REF!,#REF!)) -> 
M121: =IF($D121="","",SUM(#REF!,#REF!,#REF!,#REF!,#REF!,#REF!)) -> 
M122: =IF($D122="","",SUM(#REF!,#REF!,#REF!,#REF!,#REF!,#REF!)) -> 
M123: =IF($D123="","",SUM(#REF!,#REF!,#REF!,#REF!,#REF!,#REF!)) -> 
M124: =IF($D124="","",SUM(#REF!,#REF!,#REF!,#REF!,#REF!,#REF!)) -> 
M125: =IF($D125="","",SUM(#REF!,#REF!,#REF!,#REF!,#REF!,#REF!)) -> 
M126: =IF($D126="","",SUM(#REF!,#REF!,#REF!,#REF!,#REF!,#REF!)) -> 
M127: =IF($D127="","",SUM(#REF!,#REF!,#REF!,#REF!,#REF!,#REF!)) -> 
M128: =IF($D128="","",SUM(#REF!,#REF!,#REF!,#REF!,#REF!,#REF!)) -> 
M129: =IF($D129="","",SUM(#REF!,#REF!,#REF!,#REF!,#REF!,#REF!)) -> 
M130: =IF($D130="","",SUM(#REF!,#REF!,#REF!,#REF!,#REF!,#REF!)) -> 
M131: =IF($D131="","",SUM(#REF!,#REF!,#REF!,#REF!,#REF!,#REF!)) -> 
M132: =IF($D132="","",SUM(#REF!,#REF!,#REF!,#REF!,#REF!,#REF!)) -> 
M133: =IF($D133="","",SUM(#REF!,#REF!,#REF!,#REF!,#REF!,#REF!)) -> 
M134: =IF($D134="","",SUM(#REF!,#REF!,#REF!,#REF!,#REF!,#REF!)) -> 
M135: =IF($D135="","",SUM(#REF!,#REF!,#REF!,#REF!,#REF!,#REF!)) -> 
M136: =IF($D136="","",SUM(#REF!,#REF!,#REF!,#REF!,#REF!,#REF!)) -> 
M137: =IF($D137="","",SUM(#REF!,#REF!,#REF!,#REF!,#REF!,#REF!)) -> 
M138: =IF($D138="","",SUM(#REF!,#REF!,#REF!,#REF!,#REF!,#REF!)) -> 
M139: =IF($D139="","",SUM(#REF!,#REF!,#REF!,#REF!,#REF!,#REF!)) -> 
M140: =IF($D140="","",SUM(#REF!,#REF!,#REF!,#REF!,#REF!,#REF!)) -> 
M141: =IF($D141="","",SUM(#REF!,#REF!,#REF!,#REF!,#REF!,#REF!)) -> 
M142: =IF($D142="","",SUM(#REF!,#REF!,#REF!,#REF!,#REF!,#REF!)) -> 
M143: =IF($D143="","",SUM(#REF!,#REF!,#REF!,#REF!,#REF!,#REF!)) -> 
M144: =IF($D144="","",SUM(#REF!,#REF!,#REF!,#REF!,#REF!,#REF!)) -> 
M145: =IF($D145="","",SUM(#REF!,#REF!,#REF!,#REF!,#REF!,#REF!)) -> 
M146: =IF($D146="","",SUM(#REF!,#REF!,#REF!,#REF!,#REF!,#REF!)) -> 
M147: =IF($D147="","",SUM(#REF!,#REF!,#REF!,#REF!,#REF!,#REF!)) -> 
M148: =IF($D148="","",SUM(#REF!,#REF!,#REF!,#REF!,#REF!,#REF!)) -> 
M149: =IF($D149="","",SUM(#REF!,#REF!,#REF!,#REF!,#REF!,#REF!)) -> 
M150: =IF($D150="","",SUM(#REF!,#REF!,#REF!,#REF!,#REF!,#REF!)) -> 
M151: =IF($D151="","",SUM(#REF!,#REF!,#REF!,#REF!,#REF!,#REF!)) -> 
M152: =IF($D152="","",SUM(#REF!,#REF!,#REF!,#REF!,#REF!,#REF!)) -> 
M153: =IF($D153="","",SUM(#REF!,#REF!,#REF!,#REF!,#REF!,#REF!)) -> 
M154: =IF($D154="","",SUM(#REF!,#REF!,#REF!,#REF!,#REF!,#REF!)) -> 
M155: =IF($D155="","",SUM(#REF!,#REF!,#REF!,#REF!,#REF!,#REF!)) -> 
M156: =IF($D156="","",SUM(#REF!,#REF!,#REF!,#REF!,#REF!,#REF!)) -> 
M157: =IF($D157="","",SUM(#REF!,#REF!,#REF!,#REF!,#REF!,#REF!)) -> 
M158: =IF($D158="","",SUM(#REF!,#REF!,#REF!,#REF!,#REF!,#REF!)) -> 
M159: =IF($D159="","",SUM(#REF!,#REF!,#REF!,#REF!,#REF!,#REF!)) -> 
M160: =IF($D160="","",SUM(#REF!,#REF!,#REF!,#REF!,#REF!,#REF!)) -> 
M161: =IF($D161="","",SUM(#REF!,#REF!,#REF!,#REF!,#REF!,#REF!)) -> 
M162: =IF($D162="","",SUM(#REF!,#REF!,#REF!,#REF!,#REF!,#REF!)) -> 
M163: =IF($D163="","",SUM(#REF!,#REF!,#REF!,#REF!,#REF!,#REF!)) -> 
M164: =IF($D164="","",SUM(#REF!,#REF!,#REF!,#REF!,#REF!,#REF!)) -> 
M165: =IF($D165="","",SUM(#REF!,#REF!,#REF!,#REF!,#REF!,#REF!)) -> 
M166: =IF($D166="","",SUM(#REF!,#REF!,#REF!,#REF!,#REF!,#REF!)) -> 
M167: =IF($D167="","",SUM(#REF!,#REF!,#REF!,#REF!,#REF!,#REF!)) -> 
M168: =IF($D168="","",SUM(#REF!,#REF!,#REF!,#REF!,#REF!,#REF!)) -> 
M169: =IF($D169="","",SUM(#REF!,#REF!,#REF!,#REF!,#REF!,#REF!)) -> 
M170: =IF($D170="","",SUM(#REF!,#REF!,#REF!,#REF!,#REF!,#REF!)) -> 
M171: =IF($D171="","",SUM(#REF!,#REF!,#REF!,#REF!,#REF!,#REF!)) -> 
M172: =IF($D172="","",SUM(#REF!,#REF!,#REF!,#REF!,#REF!,#REF!)) -> 
L173: =IF($D173="","",SUM(F173,G173,H173,I173,J173,K173)) ->  | M173: =IF($D173="","",SUM(#REF!,#REF!,#REF!,#REF!,#REF!,#REF!)) -> 
M174: =IF($D174="","",SUM(#REF!,#REF!,#REF!,#REF!,#REF!,#REF!)) -> 
M175: =IF($D175="","",SUM(#REF!,#REF!,#REF!,#REF!,#REF!,#REF!)) -> 
M176: =IF($D176="","",SUM(#REF!,#REF!,#REF!,#REF!,#REF!,#REF!)) -> 
M177: =IF($D177="","",SUM(#REF!,#REF!,#REF!,#REF!,#REF!,#REF!)) -> 
M178: =IF($D178="","",SUM(#REF!,#REF!,#REF!,#REF!,#REF!,#REF!)) -> 
M179: =IF($D179="","",SUM(#REF!,#REF!,#REF!,#REF!,#REF!,#REF!)) -> 
M180: =IF($D180="","",SUM(#REF!,#REF!,#REF!,#REF!,#REF!,#REF!)) -> 
M181: =IF($D181="","",SUM(#REF!,#REF!,#REF!,#REF!,#REF!,#REF!)) -> 
M182: =IF($D182="","",SUM(#REF!,#REF!,#REF!,#REF!,#REF!,#REF!)) -> 
M183: =IF($D183="","",SUM(#REF!,#REF!,#REF!,#REF!,#REF!,#REF!)) -> 
M184: =IF($D184="","",SUM(#REF!,#REF!,#REF!,#REF!,#REF!,#REF!)) -> 
M185: =IF($D185="","",SUM(#REF!,#REF!,#REF!,#REF!,#REF!,#REF!)) -> 
M186: =IF($D186="","",SUM(#REF!,#REF!,#REF!,#REF!,#REF!,#REF!)) -> 
M187: =IF($D187="","",SUM(#REF!,#REF!,#REF!,#REF!,#REF!,#REF!)) -> 
M188: =IF($D188="","",SUM(#REF!,#REF!,#REF!,#REF!,#REF!,#REF!)) -> 
M189: =IF($D189="","",SUM(#REF!,#REF!,#REF!,#REF!,#REF!,#REF!)) -> 
M190: =IF($D190="","",SUM(#REF!,#REF!,#REF!,#REF!,#REF!,#REF!)) -> 
M191: =IF($D191="","",SUM(#REF!,#REF!,#REF!,#REF!,#REF!,#REF!)) -> 
M192: =IF($D192="","",SUM(#REF!,#REF!,#REF!,#REF!,#REF!,#REF!)) -> 
M193: =IF($D193="","",SUM(#REF!,#REF!,#REF!,#REF!,#REF!,#REF!)) -> 
M194: =IF($D194="","",SUM(#REF!,#REF!,#REF!,#REF!,#REF!,#REF!)) -> 
M195: =IF($D195="","",SUM(#REF!,#REF!,#REF!,#REF!,#REF!,#REF!)) -> 
M196: =IF($D196="","",SUM(#REF!,#REF!,#REF!,#REF!,#REF!,#REF!)) -> 
M197: =IF($D197="","",SUM(#REF!,#REF!,#REF!,#REF!,#REF!,#REF!)) -> 
M198: =IF($D198="","",SUM(#REF!,#REF!,#REF!,#REF!,#REF!,#REF!)) -> 
M199: =IF($D199="","",SUM(#REF!,#REF!,#REF!,#REF!,#REF!,#REF!)) -> 
M200: =IF($D200="","",SUM(#REF!,#REF!,#REF!,#REF!,#REF!,#REF!)) -> 
... 51 more rows
